Workbook

Sheet Parâmetros
A7: Município de :
A8: PLANO PLURIANUAL 2026 - 2029
A9: Parâmentos Utilizados nas Estimativas das Receitas e Despesas
A10: Indicador | B10: 2025 | C10: =B10+1 -> 2026 | D10: =C10+1 -> 2027 | E10: =D10+1 -> 2028 | F10: =E10+1 -> 2029
A11: INFLAÇÃO MÉDIA ANUAL (IPCA) | B11: 0.0506 | C11: 0.045 | D11: 0.04 | E11: 0.0383 | F11: 0.038
A12: VARIAÇÃODO PIB | B12: 0.0221 | C12: 0.0187 | D12: 0.02 | E12: 0.02 | F12: 0.02
A13: CRESCIMENTO VEGETATIVO DA FOLHA SALARIAL | B13: 0.0152 | C13: 0.0152 | D13: 0.0152 | E13: 0.0152 | F13: 0.0152
A14: CRESCIMENTO VEGETATIVO DE OUTRAS DESP DE CUSTEIO | B14: 0 | C14: 0 | D14: 0 | E14: 0 | F14: 0
A15: EXPECTATIVA DE CRESCIMENTO MÉDIO DA ARRECADAÇÃO TRIBUTÁRIA PRÓPRIA | B15: 0.0632 | C15: 0.058 | D15: 0.0582 | E15: 0.058 | F15: 0.059
A16: EXPECTATIVA DE CRESCIMENTO MÉDIO DAS TRANSFERÊNCIAS DO UNÃO | B16: 0.03 | C16: 0.03 | D16: 0.03 | E16: 0.03 | F16: 0.03
A17: EXPECTATIVA DE CRESCIMENTO MÉDIO DAS TRANSFERÊNCIAS DO ESTADO | B17: 0.02 | C17: 0.02 | D17: 0.02 | E17: 0.02 | F17: 0.02
A18: PERCENTUAL DE AUMENTO SALARIAL - EXECUTVO (ACIMA DO IPCA) | B18: 0.0241 | C18: 0.02 | D18: 0.03 | E18: 0.032 | F18: 0.032
A19: PERCENTUAL DE AUMENTO SALARIAL - LEGISLATIVO (ACIMA DO IPCA) | B19: 0 | C19: 0 | D19: 0 | E19: 0 | F19: 0

Sheet Projeções
A1: =Parâmetros!A7 -> Município de :
A2: =Parâmetros!A8 -> PLANO PLURIANUAL 2026 - 2029
A3: Tabela 01 - Memória de Cálculo das Estimativas das Principais Receitas
I5: Valores em R$ 1,00
B6: CONTAS | C6: ARRECADADA | D6: ARRECADADA | E6: (RE) ESTIMADA | F6: PROJETADO | G6: PROJETADO | H6: PROJETADO | I6: PROJETADO
B7: CONSOLIDADAS ANUAIS | C7: 2023 | D7: =C7+1 -> 2024 | E7: 2025 | F7: 2026 | G7: 2027 | H7: 2028 | I7: 2029
A8: 1.0.0.0.00.0.0.00.00.00 | B8: Receitas Correntes | C8: =C9+C10+C11+C12+C19+C34+C35+C36+C37+C38+C75 -> 165001376.9 | D8: 178541552.7 | E8: 180633404.2 | F8: 181660204.6 | G8: 187299488.8 | H8: 191303013.1 | I8: =I9+I10+I11+I12+I19+I34+I35+I36+L37+I38+I75 -> 180664493.6
A9: 1.1.1.0.00.0.0.00.00.00 | B9: Impostos | C9: 25972856.52 | D9: 28922693.32 | E9: =28201000+2000000 -> 30201000 | F9: =((C9+D9+E9)/3)*(1+Parâmetros!C11)*(1+Parâmetros!C15) -> 31361198.82 | G9: =((D9+E9+F9)/3)*(1+Parâmetros!D11)*(1+Parâmetros!D15) -> 33193719.13 | H9: =((E9+F9+G9)/3)*(1+Parâmetros!E11)*(1+Parâmetros!E15) -> 34697134.55 | I9: =((F9+G9+H9)/3)*(1+Parâmetros!F11)*(1+Parâmetros!F15) -> 36367341.56
A10: 1.1.2.0.00.0.0.00.00.00 | B10: Taxas | C10: 3593578.02 | D10: 4128288.84 | E10: 3800000 | F10: =((C10+D10+E10)/3)*(1+Parâmetros!C11)*(1+Parâmetros!C15) -> 4246230.406 | G10: =((D10+E10+F10)/3)*(1+Parâmetros!D11)*(1+Parâmetros!D15) -> 4466133.106 | H10: =((E10+F10+G10)/3)*(1+Parâmetros!E11)*(1+Parâmetros!E15) -> 4581699.694 | I10: =((F10+G10+H10)/3)*(1+Parâmetros!F11)*(1+Parâmetros!F15) -> 4871130.876
A11: 1.1.3.0.00.0.0.00.00.00 | B11: Contribuição de Melhoria | C11: 0 | D11: 0 | E11: 0 | F11: =((C11+D11+E11)/3)*(1+Parâmetros!C11)*(1+Parâmetros!C15) -> 0 | G11: =((D11+E11+F11)/3)*(1+Parâmetros!D11)*(1+Parâmetros!D15) -> 0 | H11: =((E11+F11+G11)/3)*(1+Parâmetros!E11)*(1+Parâmetros!E15) -> 0 | I11: =((F11+G11+H11)/3)*(1+Parâmetros!F11)*(1+Parâmetros!F15) -> 0
A12: 1.2.0.0.00.0.0.00.00.00 | B12: Contribuições | C12: =C13+C17+C18 -> 4876745.46 | D12: 4047590.17 | E12: 5330300 | F12: 5141655.054 | G12: 5263249.188 | H12: 5705652.138 | I12: 5840068.542
A13: 1.2.1.0.00.0.0.00.00.00 | B13: Contribuições Sociais | C13: =C14+C15+C16 -> 4876745.46 | D13: 4047590.17 | E13: 5330300 | F13: 5141655.054 | G13: 5263249.188 | H13: 5705652.138 | I13: 5840068.542
A14: 1.2.1.5.XX.0.0.00.00.00 | B14: Contribuição para o Regime Próprio de Previdência Social - RPPS (dos servidores) | C14: 4876745.46 | D14: 4047590.17 | E14: 5330300 | F14: =((C14+D14+E14)/3)*(1+Parâmetros!C11)*(1+Parâmetros!C13)*(1+Parâmetros!C18) -> 5141655.054 | G14: =((D14+E14+F14)/3)*(1+Parâmetros!D11)*(1+Parâmetros!D13)*(1+Parâmetros!D18) -> 5263249.188 | H14: =((E14+F14+G14)/3)*(1+Parâmetros!E11)*(1+Parâmetros!E13)*(1+Parâmetros!E18) -> 5705652.138 | I14: =((F14+G14+H14)/3)*(1+Parâmetros!F11)*(1+Parâmetros!F13)*(1+Parâmetros!F18) -> 5840068.542
A15: 1.2.1.5.YY.0.0.00.00.00 | B15: Contribuição para os Fundos de Assistência Médica | C15: 0 | D15: 0 | E15: 0 | F15: =((C15+D15+E15)/3)*(1+Parâmetros!C11)*(1+Parâmetros!C13)*(1+Parâmetros!C18) -> 0 | G15: =((D15+E15+F15)/3)*(1+Parâmetros!D11)*(1+Parâmetros!D13)*(1+Parâmetros!D18) -> 0 | H15: =((E15+F15+G15)/3)*(1+Parâmetros!E11)*(1+Parâmetros!E13)*(1+Parâmetros!E18) -> 0 | I15: =((F15+G15+H15)/3)*(1+Parâmetros!F11)*(1+Parâmetros!F13)*(1+Parâmetros!F18) -> 0
A16: 1.2.1.0.99.0.0.00.00.00 | B16: Outras Contribuições Sociais | C16: 0 | D16: 0 | E16: 0 | F16: =((C16+D16+E16)/3)*(1+Parâmetros!C11) -> 0 | G16: =((D16+E16+F16)/3)*(1+Parâmetros!D11) -> 0 | H16: =((E16+F16+G16)/3)*(1+Parâmetros!E11) -> 0 | I16: =((F16+G16+H16)/3)*(1+Parâmetros!F11) -> 0
A17: 1.2.2.0.00.0.0.00.00.00 | B17: Contribuições Econômicas | C17: 0 | D17: 0 | E17: 0 | F17: =((C17+D17+E17)/3)*(1+Parâmetros!C11) -> 0 | G17: =((D17+E17+F17)/3)*(1+Parâmetros!D11) -> 0 | H17: =((E17+F17+G17)/3)*(1+Parâmetros!E11) -> 0 | I17: =((F17+G17+H17)/3)*(1+Parâmetros!F11) -> 0
A18: 1.2.4.0.00.0.0.00.00.00 | B18: Contribuição para o Custeio do Serviço de Iluminação Pública | C18: 0 | D18: 0 | E18: 0 | F18: =((C18+D18+E18)/3)*(1+Parâmetros!C11)*(1+Parâmetros!C12) -> 0 | G18: =((D18+E18+F18)/3)*(1+Parâmetros!D11)*(1+Parâmetros!D12) -> 0 | H18: =((E18+F18+G18)/3)*(1+Parâmetros!E11)*(1+Parâmetros!E12) -> 0 | I18: =((F18+G18+H18)/3)*(1+Parâmetros!F11)*(1+Parâmetros!F12) -> 0
A19: 1.3.0.0.00.0.0.00.00.00 | B19: Receita Patrimonial | C19: =C20+C21+C31+C32+C33 -> 24897499.16 | D19: 18036821.26 | E19: 20939275.32 | F19: =F20+F21+F31+F32+F33 -> 22249302.52 | G19: 21224805.02 | H19: 22293471.81 | I19: =I20+I21+I31+I32+I33 -> 22755582.45
A20: 1.3.1.0.00.0.0.00.00.00 | B20: Exploração do Patrimônio Imobiliário | C20: 522953.56 | D20: 307041.89 | E20: 211000 | F20: =((C20+D20+E20)/3)*(1+Parâmetros!C11) -> 362613.4151 | G20: =((D20+E20+F20)/3)*(1+Parâmetros!D11) -> 305293.8391 | H20: =((E20+F20+G20)/3)*(1+Parâmetros!E11) -> 304189.8007 | I20: =((F20+G20+H20)/3)*(1+Parâmetros!F11) -> 336345.581
A21: 1.3.2.0.00.0.0.00.00.00 | B21: Valores Mobiliários | C21: =SUM(C22:C30) -> 22927323.91 | D21: 17656969.1 | E21: 20728275.32 | F21: 21357211.3 | G21: 20710717.98 | H21: 21733766.41 | I21: =SUM(I22:I30) -> 22075386.71
A22: 1.3.2.1.01.0.X.AA.00.00 | B22: Remuneração de Depósitos de Recursos Vinculados da Educação (MDE, Fundeb e Demais Vinculações da Educação) | C22: 378332.52 | D22: 546045.78 | E22: =250000+70000+69000+3000 -> 392000 | F22: =((C22+D22+E22)/3)*(1+Parâmetros!C11) -> 458538.4412 | G22: =((D22+E22+F22)/3)*(1+Parâmetros!D11) -> 484149.1967 | H22: =((E22+F22+G22)/3)*(1+Parâmetros!E11) -> 461935.3915 | I22: =((F22+G22+H22)/3)*(1+Parâmetros!F11) -> 485999.5681
A23: 1.3.2.1.01.0.X.BB.00.00 | B23: Remuneração de Depósitos de Recursos Vinculados da Saúde (ASPS + Fonte Federal e Estadual) | C23: 467821.92 | D23: 803319.54 | E23: =737000-69000-3000 -> 665000 | F23: =((C23+D23+E23)/3)*(1+Parâmetros!C11) -> 674422.6086 | G23: =((D23+E23+F23)/3)*(1+Parâmetros!D11) -> 742817.2782 | H23: =((E23+F23+G23)/3)*(1+Parâmetros!E11) -> 720663.2248 | I23: =((F23+G23+H23)/3)*(1+Parâmetros!F11) -> 739714.4766
A24: 1.3.2.1.01.0.X.CC.00.00 | B24: Remuneração de Depósitos de Recursos Vinculados da Assistência Social ( Rec. Próprios + Fonte Federal e Estadual) | C24: 33578.98 | D24: 79123.34 | E24: 14200 | F24: =((C24+D24+E24)/3)*(1+Parâmetros!C11) -> 44204.30813 | G24: =((D24+E24+F24)/3)*(1+Parâmetros!D11) -> 47676.25135 | H24: =((E24+F24+G24)/3)*(1+Parâmetros!E11) -> 36714.48164 | I24: =((F24+G24+H24)/3)*(1+Parâmetros!F11) -> 44493.88423
A25: 1.3.2.1.01.0.X.DD.00.00 | B25: Remuneração de Depósitos de Outros Recursos Vinculados | C25: 697372.03 | D25: 596925.11 | E25: 93800 | F25: =((C25+D25+E25)/3)*(1+Parâmetros!C11) -> 483520.5038 | G25: =((D25+E25+F25)/3)*(1+Parâmetros!D11) -> 407071.8128 | H25: =((E25+F25+G25)/3)*(1+Parâmetros!E11) -> 340698.1808 | I25: =((F25+G25+H25)/3)*(1+Parâmetros!F11) -> 426026.5121
A26: 1.3.2.1.01.0.X.02.00.00 | B26: Remuneração de Depósitos de Recursos Não Vinculados | C26: =4450712.29-1010279.54 -> 3440432.75 | D26: =2728726.48 -> 2728726.48 | E26: =1586913.67+642561.65 -> 2229475.32 | F26: =((C26+D26+E26)/3)*(1+Parâmetros!C11) -> 2925524.368 | G26: =((D26+E26+F26)/3)*(1+Parâmetros!D11) -> 2733025.072 | H26: =((E26+F26+G26)/3)*(1+Parâmetros!E11) -> 2730045.369 | I26: =((F26+G26+H26)/3)*(1+Parâmetros!F11) -> 2902453.804
A27: 1.3.2.1.01.0.X.02.00.01 | B27: Receita Rendimentos Autarquia | C27: 1010279.54 | D27: 1149333.59 | E27: 600000 | F27: =((C27+D27+E27)/3)*(1+Parâmetros!C11) -> 961265.2403 | G27: =((D27+E27+F27)/3)*(1+Parâmetros!D11) -> 939674.2612 | H27: =((E27+F27+G27)/3)*(1+Parâmetros!E11) -> 865575.1615 | I27: =((F27+G27+H27)/3)*(1+Parâmetros!F11) -> 957214.0734
A28: 1.3.2.1.04.0.X.00.00 | B28: Remuneração dos Recursos do Regime Próprio de Previdência Social - RPPS | C28: =16899480.26 -> 16899480.26 | D28: 11731265.66 | E28: =11733800+5000000 -> 16733800 | F28: =((C28+D28+E28)/3)*(1+Parâmetros!C11) -> 15801983.5 | G28: =((D28+E28+F28)/3)*(1+Parâmetros!D11) -> 15345910.37 | H28: =((E28+F28+G28)/3)*(1+Parâmetros!E11) -> 16571854.25 | I28: =((F28+G28+H28)/3)*(1+Parâmetros!F11) -> 16511032.85
A29: 1.3.2.1.00.5.0.00.00.00 | B29: Juros de Títulos de Renda | C29: 0 | D29: 0 | E29: 0 | F29: =((C29+D29+E29)/3)*(1+Parâmetros!C11) -> 0 | G29: =((D29+E29+F29)/3)*(1+Parâmetros!D11) -> 0 | H29: =((E29+F29+G29)/3)*(1+Parâmetros!E11) -> 0 | I29: =((F29+G29+H29)/3)*(1+Parâmetros!F11) -> 0
A30: 1.3.2.9.00.0.0.00.00.00 | B30: Outros Valores Mobiliários | C30: 25.91 | D30: 22229.6 | E30: 0 | F30: =((C30+D30+E30)/3)*(1+Parâmetros!C11) -> 7752.335983 | G30: =((D30+E30+F30)/3)*(1+Parâmetros!D11) -> 10393.73781 | H30: =((E30+F30+G30)/3)*(1+Parâmetros!E11) -> 6280.356139 | I30: =((F30+G30+H30)/3)*(1+Parâmetros!F11) -> 8451.544756
A31: 1.3.3.0.00.0.0.00.00.00 | B31: Delegação de Serviços Públicos Mediante Concessão, Permissão, Autorização ou Licença | C31: 46221.69 | D31: 72810.27 | E31: 0 | F31: =((C31+D31+E31)/3)*(1+Parâmetros!C11) -> 41462.7994 | G31: =((D31+E31+F31)/3)*(1+Parâmetros!D11) -> 39614.66406 | H31: =((E31+F31+G31)/3)*(1+Parâmetros!E11) -> 28060.9101 | I31: =((F31+G31+H31)/3)*(1+Parâmetros!F11) -> 37761.87725
A32: 1.3.6.0.00.0.0.00.00.00 | B32: Cessão de Direitos | C32: 1401000 | D32: 0 | E32: 0 | F32: =((C32+D32+E32)/3)*(1+Parâmetros!C11) -> 488015 | G32: =((D32+E32+F32)/3)*(1+Parâmetros!D11) -> 169178.5333 | H32: =((E32+F32+G32)/3)*(1+Parâmetros!E11) -> 227454.6819 | I32: =((F32+G32+H32)/3)*(1+Parâmetros!F11) -> 306088.2825
A33: 1.3.9.0.00.0.0.00.00.00 | B33: Demais Receitas Patrimoniais | C33: 0 | D33: 0 | E33: 0 | F33: =((C33+D33+E33)/3)*(1+Parâmetros!C11) -> 0 | G33: =((D33+E33+F33)/3)*(1+Parâmetros!D11) -> 0 | H33: =((E33+F33+G33)/3)*(1+Parâmetros!E11) -> 0 | I33: =((F33+G33+H33)/3)*(1+Parâmetros!F11) -> 0
A34: 1.4.0.0.00.0.0.00.00.00 | B34: Receita Agropecuária | C34: 15000 | D34: 0 | E34: 0 | F34: =((C34+D34+E34)/3)*(1+Parâmetros!C11) -> 5225 | G34: =((D34+E34+F34)/3)*(1+Parâmetros!D11) -> 1811.333333 | H34: =((E34+F34+G34)/3)*(1+Parâmetros!E11) -> 2435.274967 | I34: =((F34+G34+H34)/3)*(1+Parâmetros!F11) -> 3277.176472
A35: 1.5.0.0.00.0.0.00.00.00 | B35: Receita Industrial | C35: 0 | D35: 0 | E35: 0 | F35: =((C35+D35+E35)/3)*(1+Parâmetros!C11) -> 0 | G35: =((D35+E35+F35)/3)*(1+Parâmetros!D11) -> 0 | H35: =((E35+F35+G35)/3)*(1+Parâmetros!E11) -> 0 | I35: =((F35+G35+H35)/3)*(1+Parâmetros!F11) -> 0
A36: 1.6.0.0.00.0.0.00.00 | B36: Receita de Serviços | C36: =12789255.28-11791042.12 -> 998213.16 | D36: =13895676.66-12759841.55 -> 1135835.11 | E36: =900000 -> 900000 | F36: =((C36+D36+E36)/3)*(1+Parâmetros!C11) -> 1056860.147 | G36: =((D36+E36+F36)/3)*(1+Parâmetros!D11) -> 1072134.356 | H36: =((E36+F36+G36)/3)*(1+Parâmetros!E11) -> 1048334.998 | I36: =((F36+G36+H36)/3)*(1+Parâmetros!F11) -> 1099356.007
A37: 1.6.9.0.00.0.0.00.00 | B37: Receita Serviços Autarquia | C37: 11791042.12 | D37: 12759841.55 | E37: =13552244.48+16970.8+40305.65+130000+177132.73+129402.35 -> 14046056.01 | F37: =((C37+D37+E37)/3)*(1+Parâmetros!C11) -> 13444600.66 | G37: =((D37+E37+F37)/3)*(1+Parâmetros!D11) -> 13953506.05 | H37: =((E37+F37+G37)/3)*(1+Parâmetros!E11) -> 14343824.72 | I37: =((F37+G37+H37)/3)*(1+Parâmetros!F11) -> 14442708.27
A38: 1.7.0.0.00.0.0.00.00.00 | B38: Transferências Correntes | C38: =C39+C54+C70+C71+C72+C73+C74 -> 92272919.17 | D38: 103934644.9 | E38: 104864306 | F38: 102917178.7 | G38: 106570494.6 | H38: 107473082.1 | I38: =I39+I54+I70+I71+I72+I73+I74 -> 108361394.4
A39: 1.7.1.0.00.0.0.00.00.00 | B39: Transferências da União e de suas Entidades | C39: =SUM(C40:C53) -> 43019147.19 | D39: 46671833.96 | E39: 48540306 | F39: =SUM(F40:F53) -> 47439227.87 | G39: 48967195.99 | H39: 49755059.14 | I39: =SUM(I40:I53) -> 50168796.12
A40: 1.7.1.1.51.1.0.00.00.00 | B40: Cota-Parte do FPM - Cota Mensal | C40: 30863956.65 | D40: 35196769.83 | E40: =30108000+7000000+1000000 -> 38108000 | F40: =((C40+D40+E40)/3)*(1+Parâmetros!C16) -> 35764596.09 | G40: =((D40+E40+F40)/3)*(1+Parâmetros!D16) -> 37447148.97 | H40: =((E40+F40+G40)/3)*(1+Parâmetros!E16) -> 38219779.14 | I40: =((F40+G40+H40)/3)*(1+Parâmetros!F16) -> 38258156.64
A41: 1.7.1.1.51.2.0.00.00.00 | B41: Cota-Parte do FPM - Cotas Extraordinárias | C41: 2458096.6 | D41: 3633312.72 | E41: 4632000 | F41: =((C41+D41+E41)/3)*(1+Parâmetros!C16) -> 3681703.867 | G41: =((D41+E41+F41)/3)*(1+Parâmetros!D16) -> 4101809.028 | H41: =((E41+F41+G41)/3)*(1+Parâmetros!E16) -> 4262659.427 | I41: =((F41+G41+H41)/3)*(1+Parâmetros!F16) -> 4135852.497
A42: 1.7.1.1.52.0.0.00.00.00 | B42: Cota-Parte do Imposto Sobre a Propriedade Territorial Rural | C42: 12110.78 | D42: 23035.74 | E42: 6250 | F42: =((C42+D42+E42)/3)*(1+Parâmetros!C16) -> 14212.8052 | G42: =((D42+E42+F42)/3)*(1+Parâmetros!D16) -> 14934.50052 | H42: =((E42+F42+G42)/3)*(1+Parâmetros!E16) -> 12153.07496 | I42: =((F42+G42+H42)/3)*(1+Parâmetros!F16) -> 14179.79737
A43: 1.7.1.2.00.0.0.00.00.00 | B43: Transferência da Compensação Financeira pela Exploração de Recursos Naturais | C43: 664138.75 | D43: 726712.19 | E43: =22000+650000 -> 672000 | F43: =((C43+D43+E43)/3)*(1+Parâmetros!C16) -> 708245.4894 | G43: =((D43+E43+F43)/3)*(1+Parâmetros!D16) -> 723388.8033 | H43: =((E43+F43+G43)/3)*(1+Parâmetros!E16) -> 722247.7738 | I43: =((F43+G43+H43)/3)*(1+Parâmetros!F16) -> 739499.5095
A44: 1.7.1.3.00.0.0.00.00.00 | B44: Transferência de Recursos do Sistema Único de Saúde – SUS – Repasses Fundo a Fundo | C44: 3556962.91 | D44: 3000233.67 | E44: =(1584528-450000)/6*12 -> 2269056 | F44: =((C44+D44+E44)/3)*(1+Parâmetros!C16) -> 3030346.719 | G44: =((D44+E44+F44)/3)*(1+Parâmetros!D16) -> 2849541.827 | H44: =((E44+F44+G44)/3)*(1+Parâmetros!E16) -> 2797804.294 | I44: =((F44+G44+H44)/3)*(1+Parâmetros!F16) -> 2979341.208
A45: 1.7.1.4.00.0.0.00.00.00 | B45: Transferêncaias de Recursos do FNDE | C45: 2918413.5 | D45: 2764059.18 | E45: =1590000+608000+24500 -> 2222500 | F45: =((C45+D45+E45)/3)*(1+Parâmetros!C16) -> 2714040.62 | G45: =((D45+E45+F45)/3)*(1+Parâmetros!D16) -> 2643872.598 | H45: =((E45+F45+G45)/3)*(1+Parâmetros!E16) -> 2602608.538 | I45: =((F45+G45+H45)/3)*(1+Parâmetros!F16) -> 2733112.47
A46: 1.7.1.5.52.0.0.00.00.00 | B46: Transferências de Recursos de Complementação da União ao Fundeb – VAAR | C46: 371927.68 | D46: 766090.17 | E46: 497700 | F46: =((C46+D46+E46)/3)*(1+Parâmetros!C16) -> 561596.4618 | G46: =((D46+E46+F46)/3)*(1+Parâmetros!D16) -> 626716.0769 | H46: =((E46+F46+G46)/3)*(1+Parâmetros!E16) -> 578864.305 | I46: =((F46+G46+H46)/3)*(1+Parâmetros!F16) -> 606730.7164
A47: 1.7.1.5.XX.0.0.00.00.00 | B47: Transferências de outras Complementações do Fundeb (VAAF e/ou VAAT) | C47: 0 | D47: 0 | F47: =((C47+D47+E47)/3)*(1+Parâmetros!C16) -> 0 | G47: =((D47+E47+F47)/3)*(1+Parâmetros!D16) -> 0 | H47: =((E47+F47+G47)/3)*(1+Parâmetros!E16) -> 0 | I47: =((F47+G47+H47)/3)*(1+Parâmetros!F16) -> 0
A48: 1.7.1.6.50.0.0.00.00.00 | B48: Transferências de Recursos do Fundo Nacional de Assistência Social – FNAS | C48: 460141.55 | D48: 256947.79 | E48: 132800 | F48: =((C48+D48+E48)/3)*(1+Parâmetros!C16) -> 291795.3401 | G48: =((D48+E48+F48)/3)*(1+Parâmetros!D16) -> 233996.4747 | H48: =((E48+F48+G48)/3)*(1+Parâmetros!E16) -> 226116.5231 | I48: =((F48+G48+H48)/3)*(1+Parâmetros!F16) -> 258155.196
A49: 1.7.1.7.50.0.0.00.00.00 | B49: Transferências de Convênios da União e de Suas Entidades - SAÚDE/SUS | C49: 0 | D49: 0 | F49: =((C49+D49+E49)/3) -> 0 | G49: 0 | H49: 0 | I49: 0
A50: 1.7.1.7.51.0.0.00.00.00 | B50: Transferências de Convênios da União e de Suas Entidades - EDUCAÇÃO | C50: 0 | D50: 0 | F50: 0 | G50: 0 | H50: 0 | I50: 0
A51: 1.7.1.7.52.0.0.00.00.00 | B51: Transferências de Convênios da União e de Suas Entidades - ASS.SOCIAL | C51: 0 | D51: 0 | F51: 0 | G51: 0 | H51: 0 | I51: 0
A52: 1.7.1.7.99.0.0.00.00.00 | B52: Transferências de Convênios da União e de Suas Entidades - OUTROS | C52: 1713398.77 | D52: 304672.67 | F52: 672690.48 | G52: 325787.7167 | H52: 332826.0656 | I52: 443768.0874
A53: 1.7.1.8.99.0.0.00.00.00 | B53: Outras Transferências da União | C53: 0 | D53: 0 | F53: =((C53+D53+E53)/3)*(1+Parâmetros!C16) -> 0 | G53: =((D53+E53+F53)/3)*(1+Parâmetros!D16) -> 0 | H53: =((E53+F53+G53)/3)*(1+Parâmetros!E16) -> 0 | I53: =((F53+G53+H53)/3)*(1+Parâmetros!F16) -> 0
A54: 1.7.2.0.00.0.0.00.00.00 | B54: Transferências dos Estados e do Distrito Federal e de suas Entidades | C54: =SUM(C55:C69) -> 25632512.73 | D54: 29959247.01 | E54: 31139300 | F54: 29476661.58 | G54: 30788076.3 | H54: 31070455.1 | I54: =SUM(I55:I69) -> 31045195.23
A55: 1.7.2.1.50.0.0.00.00.00 | B55: Cota-Parte do ICMS | C55: 16435015.98 | D55: 20055769.59 | E55: =18353200+4000000 -> 22353200 | F55: =((C55+D55+E55)/3)*(1+Parâmetros!C17) -> 20006955.09 | G55: =((D55+E55+F55)/3)*(1+Parâmetros!D17) -> 21221414.39 | H55: =((E55+F55+G55)/3)*(1+Parâmetros!E17) -> 21617733.63 | I55: =((F55+G55+H55)/3)*(1+Parâmetros!F17) -> 21367675.06
A56: 1.7.2.1.51.0.0.00.00.00 | B56: Cota-Parte do IPVA | C56: 6760353.67 | D56: 8224109.57 | E56: 7559800 | F56: =((C56+D56+E56)/3)*(1+Parâmetros!C17) -> 7665049.502 | G56: =((D56+E56+F56)/3)*(1+Parâmetros!D17) -> 7972646.084 | H56: =((E56+F56+G56)/3)*(1+Parâmetros!E17) -> 7887148.499 | I56: =((F56+G56+H56)/3)*(1+Parâmetros!F17) -> 7998446.989
A57: 1.7.2.1.52.0.0.00.00.00 | B57: Cota-Parte do IPI - Municípios | C57: 159957.21 | D57: 254578.41 | E57: 217700 | F57: =((C57+D57+E57)/3)*(1+Parâmetros!C17) -> 214960.1108 | G57: =((D57+E57+F57)/3)*(1+Parâmetros!D17) -> 233661.0971 | H57: =((E57+F57+G57)/3)*(1+Parâmetros!E17) -> 226549.2107 | I57: =((F57+G57+H57)/3)*(1+Parâmetros!F17) -> 229557.9423
A58: 1.7.2.1.53.0.0.00.00.00 | B58: Cota-Parte da Contribuição de Intervenção no Domínio Econômico | C58: 4519.68 | D58: 31045.81 | E58: 20000 | F58: =((C58+D58+E58)/3)*(1+Parâmetros!C17) -> 18892.2666 | G58: =((D58+E58+F58)/3)*(1+Parâmetros!D17) -> 23778.94604 | H58: =((E58+F58+G58)/3)*(1+Parâmetros!E17) -> 21308.2123 | I58: =((F58+G58+H58)/3)*(1+Parâmetros!F17) -> 21753.00448
A59: 1.7.2.1.98.0.0.00.00.00 | B59: Outras Participações na Receita de Impostos do Estado | C59: 0 | D59: 0 | E59: 0 | F59: =((C59+D59+E59)/3)*(1+Parâmetros!C17) -> 0 | G59: =((D59+E59+F59)/3)*(1+Parâmetros!D17) -> 0 | H59: =((E59+F59+G59)/3)*(1+Parâmetros!E17) -> 0 | I59: =((F59+G59+H59)/3)*(1+Parâmetros!F17) -> 0
A60: 1.7.2.3.50.0.0.00.00.00 | B60: Transferência de Recursos do Estado para Programas de Saúde – Repasse Fundo a Fundo | C60: 68500 | D60: 630636.19 | E60: 553000 | F60: =((C60+D60+E60)/3)*(1+Parâmetros!C17) -> 425726.3046 | G60: =((D60+E60+F60)/3)*(1+Parâmetros!D17) -> 547183.2482 | H60: =((E60+F60+G60)/3)*(1+Parâmetros!E17) -> 518809.2479 | I60: =((F60+G60+H60)/3)*(1+Parâmetros!F17) -> 507184.3922
A61: 1.7.2.4.50.0.0.00.00.00 | B61: Transferência de Convênios dos Estados e do DF - SAÚDE/SUS | C61: 647331.23 | D61: 378961.76 | F61: =((C61+D61+E61)/3) -> 342097.6633 | G61: 240353.1411 | H61: 194150.2681 | I61: 258867.0242
A62: 1.7.2.4.51.0.0.00.00.00 | B62: Transferência de Convênios dos Estados e do DF - EDUCAÇÃO | C62: 117334.4 | D62: 68641.6 | E62: 68000 | F62: 84658.66667 | G62: 73766.75556 | H62: 75475.14074 | I62: 77966.85432
A63: 1.7.2.4.99.0.0.AA.00.00 | B63: Outras Transf.de Convênios dos Estados e do DF - ASS.SOCIAL | C63: 0 | D63: 13652.88 | F63: 4550.96 | G63: 6067.946667 | H63: 3539.635556 | I63: 4719.514074
A64: 1.7.2.4.99.0.0.BB.00.00 | B64: Outras Transf.de Convênios dos Estados e do DF - OUTROS | C64: 490888.06 | D64: 0 | F64: 163629.3533 | G64: 54543.11778 | H64: 72724.15704 | I64: 96965.54272
A65: 1.7.2.9.51.0.0.00.00.00 | B65: Transf. do Estado Destinadas a Aasistência Social - FEAS | C65: 0 | D65: 0 | F65: =((C65+D65+E65)/3)*(1+Parâmetros!C17) -> 0 | G65: =((D65+E65+F65)/3)*(1+Parâmetros!D17) -> 0 | H65: =((E65+F65+G65)/3)*(1+Parâmetros!E17) -> 0 | I65: =((F65+G65+H65)/3)*(1+Parâmetros!F17) -> 0
A66: 1.7.2.9.53.0.0.00.00.00 | B66: Transferência da Comp.Financeira das Perdas com Arrecadação de ICMS - LC nº 194/2022 | C66: 924753.49 | D66: 264681.2 | E66: 367600 | F66: =((C66+D66+E66)/3)*(1+Parâmetros!C17) -> 529391.7946 | G66: =((D66+E66+F66)/3)*(1+Parâmetros!D17) -> 394968.8182 | H66: =((E66+F66+G66)/3)*(1+Parâmetros!E17) -> 439266.6083 | I66: =((F66+G66+H66)/3)*(1+Parâmetros!F17) -> 463633.2552
A67: 1.7.2.9.99.0.0.AA.00.00 | B67: Outras Transferências dos Estados - FEAS - Assist Social (Fundo a Fundo) | C67: 23859.01 | D67: 0 | E67: 0 | F67: =((C67+D67+E67)/3)*(1+Parâmetros!C17) -> 8112.0634 | G67: =((D67+E67+F67)/3)*(1+Parâmetros!D17) -> 2758.101556 | H67: =((E67+F67+G67)/3)*(1+Parâmetros!E17) -> 3695.856085 | I67: =((F67+G67+H67)/3)*(1+Parâmetros!F17) -> 4952.447154
A68: 1.7.2.9.99.0.0.BB.00.00 | B68: Outras Transferências dos Estados - SEDUC - Educação | C68: 0 | D68: 0 | E68: 0 | F68: =((C68+D68+E68)/3)*(1+Parâmetros!C17) -> 0 | G68: =((D68+E68+F68)/3)*(1+Parâmetros!D17) -> 0 | H68: =((E68+F68+G68)/3)*(1+Parâmetros!E17) -> 0 | I68: =((F68+G68+H68)/3)*(1+Parâmetros!F17) -> 0
A69: 1.7.2.9.99.0.0.CC.00.00 | B69: Demais Transferências do Estado. | C69: 0 | D69: 37170 | E69: 0 | F69: =((C69+D69+E69)/3)*(1+Parâmetros!C17) -> 12637.8 | G69: =((D69+E69+F69)/3)*(1+Parâmetros!D17) -> 16934.652 | H69: =((E69+F69+G69)/3)*(1+Parâmetros!E17) -> 10054.63368 | I69: =((F69+G69+H69)/3)*(1+Parâmetros!F17) -> 13473.20913
A70: 1.7.3.0.00.0.0.00.00.00 | B70: Transferências dos Municípios e de suas Entidades | C70: 0 | D70: 0 | E70: 0 | F70: =((C70+D70+E70)/3) -> 0 | G70: 0 | H70: 0 | I70: 0
A71: 1.7.4.0.00.0.0.00.00.00 | B71: Transferências de Instituições Privadas | C71: 349500.01 | D71: 73320.91 | E71: 158700 | F71: 193840.3067 | G71: 141953.7389 | H71: 164831.3485 | I71: 166875.1314
A72: 1.7.5.1.50.0.0.00.00.00 | B72: Transferências de Recursos do FUNDEB | C72: 23158952.25 | D72: 27111823.38 | E72: =22950000+2000000 -> 24950000 | F72: =((C72+D72+E72)/3)*(1+AVERAGE(Parâmetros!C16:'Parâmetros'!C17)) -> 25700431.67 | G72: =((D72+E72+F72)/3)*(1+AVERAGE(Parâmetros!D16:'Parâmetros'!D17)) -> 26568770.48 | H72: =((E72+F72+G72)/3)*(1+AVERAGE(Parâmetros!E16:'Parâmetros'!E17)) -> 26383227.4 | I72: =((F72+G72+H72)/3)*(1+AVERAGE(Parâmetros!F16:'Parâmetros'!F17)) -> 26872913.43
A73: 1.7.6.0.00.0.0.00.00.00 | B73: Transferências do Exterior | C73: 0 | D73: 0 | E73: 0 | F73: =((C73+D73+E73)/3)*(1+Parâmetros!C11) -> 0 | G73: =((D73+E73+F73)/3)*(1+Parâmetros!D11) -> 0 | H73: =((E73+F73+G73)/3)*(1+Parâmetros!E11) -> 0 | I73: =((F73+G73+H73)/3)*(1+Parâmetros!F11) -> 0
A74: 1.7.9.0.00.0.0.00.00.00 | B74: Demais Transferências Correntes | C74: 112806.99 | D74: 118419.65 | E74: 76000 | F74: =((C74+D74+E74)/3)*(1+Parâmetros!C11) -> 107017.2796 | G74: =((D74+E74+F74)/3)*(1+Parâmetros!D11) -> 104498.1356 | H74: =((E74+F74+G74)/3)*(1+Parâmetros!E11) -> 99509.0852 | I74: =((F74+G74+H74)/3)*(1+Parâmetros!F11) -> 107614.4771
A75: 1.9.0.0.00.0.0.00.00.00 | B75: Outras Receitas Correntes | C75: =C76+C77+C79+C78 -> 583523.28 | D75: =D76+D77+D79+D78 -> 5575837.52 | E75: =E76+E77+E79+E78 -> 552466.88 | F75: =F76+F77+F79+F78 -> 1237953.309 | G75: =G76+G77+G79+G78 -> 1553636.006 | H75: =H76+H77+H78+H79 -> 1157377.849 | I75: =I76+I77+I79+I78 -> 1366342.638
A76: 1.9.1.0.00.0.0.00.00.00 | B76: Multas Administrativas, Contratuais e Judiciais | C76: 122428.7 | D76: 106735.47 | E76: 64000 | F76: =((C76+D76+E76)/3)*(1+Parâmetros!C11) -> 102118.8525 | G76: =((D76+E76+F76)/3)*(1+Parâmetros!D11) -> 94589.49848 | H76: =((E76+F76+G76)/3)*(1+Parâmetros!E11) -> 90231.16029 | I76: =((F76+G76+H76)/3)*(1+Parâmetros!F11) -> 99281.07092
A77: 1.9.2.0.00.0.0.00.00.00 | B77: Indenizações, Restituições e Ressarcimentos | C77: =218173.82-4956.46 -> 213217.36 | D77: =847002.15-1221.1 -> 845781.05 | E77: =141950 -> 141950 | F77: =((C77+D77+E77)/3)*(1+Parâmetros!C11) -> 418330.3628 | G77: =((D77+E77+F77)/3)*(1+Parâmetros!D11) -> 487434.6231 | H77: =((E77+F77+G77)/3)*(1+Parâmetros!E11) -> 362614.1566 | I77: =((F77+G77+H77)/3)*(1+Parâmetros!F11) -> 438859.1833
A78: 1.9.2.0.00.0.0.00.00 | B78: Outras Indenizações, Restituições e Ressarcimentos Autarquia | C78: 4956.46 | D78: 1221.1 | E78: =5303.38+21213.5 -> 26516.88 | F78: =((C78+D78+E78)/3)*(1+Parâmetros!C11) -> 11388.56327 | G78: =((D78+E78+F78)/3)*(1+Parâmetros!D11) -> 13563.86833 | H78: =((E78+F78+G78)/3)*(1+Parâmetros!E11) -> 17813.52874 | I78: =((F78+G78+H78)/3)*(1+Parâmetros!F11) -> 14797.02228
A79: 1.9.9.0.00.0.0.00.00.00 | B79: Demais Receitas Correntes | C79: =C80+C81 -> 242920.76 | D79: 4622099.9 | E79: =E80+E81 -> 320000 | F79: 706115.5299 | G79: 958048.0157 | H79: 686719.0031 | I79: 813405.3619
A80: 1.9.9.0.03.0.0.00.00.00 | B80: Compensações Financeiras entre o Regime Geral e os Regimes Próprios de Previdência dos Servidores | C80: 201531.53 | D80: 4161887.31 | E80: 320000 | F80: =((C80+D80+E80)/3)*(1+Parâmetros!C11)-1100000 -> 531390.8959 | G80: =((D80+E80+F80)/3)*(1+Parâmetros!D11)-1000000 -> 737936.4447 | H80: =((E80+F80+G80)/3)*(1+Parâmetros!E11) -> 550066.1926 | I80: =((F80+G80+H80)/3)*(1+Parâmetros!F11) -> 629510.1625
A81: 1.9.9.0.99.0.0.00.00.00 | B81: Outras Receitas (demais receitas diversas) | C81: 41389.23 | D81: 460212.59 | F81: =((C81+D81+E81)/3)*(1+Parâmetros!C11) -> 174724.634 | G81: =((D81+E81+F81)/3)*(1+Parâmetros!D11) -> 220111.571 | H81: =((E81+F81+G81)/3)*(1+Parâmetros!E11) -> 136652.8105 | I81: =((F81+G81+H81)/3)*(1+Parâmetros!F11) -> 183895.1994
A82: 2.0.0.0.00.0.0.00.00.00 | B82: Receitas de Capital | C82: =C83+C84+C85+C86+C105 -> 3931818.73 | D82: 1738636.02 | E82: 3005076.54 | F82: 7292231.075 | G82: 2345544.842 | H82: 2547857.268 | I82: =I83+I84+I85+I86+I105 -> 2395483.172
A83: 2.1.0.0.00.0.0.00.00.00 | B83: Operações de Crédito | C83: 0 | F83: 5000000 | G83: 0 | H83: 0 | I83: 0
A84: 2.2.0.0.00.0.0.00.00.00 | B84: Alienação de Bens | C84: 657027.71 | D84: 122801.96 | E84: 549222.54 | F84: =((C84+D84+E84)/3) -> 443017.4033 | G84: =((D84+E84+F84)/3) -> 371680.6344 | H84: =((E84+F84+G84)/3) -> 454640.1926 | I84: =((F84+G84+H84)/3) -> 423112.7435
A85: 2.3.0.0.00.0.0.00.00.00 | B85: Amortização de Empréstimos | C85: 17542.69 | D85: 4478.06 | E85: 3800 | F85: =((C85+D85+E85)/3)*(1+Parâmetros!C11) -> 8994.227917 | G85: =((D85+E85+F85)/3)*(1+Parâmetros!D11) -> 5987.726478 | H85: =((E85+F85+G85)/3)*(1+Parâmetros!E11) -> 6500.434416 | I85: =((F85+G85+H85)/3)*(1+Parâmetros!F11) -> 7432.906528
A86: 2.4.0.0.00.0.0.00.00.00 | B86: Transferências de Capital | C86: =SUM(C87:C104) -> 3257248.33 | D86: 1611356 | E86: 2452054 | F86: 1840219.443 | G86: 1967876.481 | H86: 2086716.641 | I86: 1964937.522
A87: 2.4.1.1.00.0.0.00.00.00 | B87: Transf.do SUS - Fundo a Fundo - Bloco de Estruturação | C87: 0 | D87: 0 | E87: 2452054 | F87: =((C87+D87+E87)/3) -> 817351.3333 | G87: =((D87+E87+F87)/3) -> 1089801.778 | H87: 1453069.037 | I87: 1120074.049
A88: 2.4.1.2.00.0.0.00.00.00 | B88: TransF. De Recursos do FNDE | C88: 127500 | D88: 22500 | F88: 50000 | G88: 24166.66667 | H88: 24722.22222 | I88: 32962.96296
A89: 2.4.1.3.00.0.0.00.00.00 | B89: TransF. De Recursos do FNAS | C89: 2195055 | D89: 0 | F89: =((C89+D89+E89)/3)-600000 -> 131685 | G89: =((D89+E89+F89)/3) -> 43895 | H89: =((E89+F89+G89)/3) -> 58526.66667 | I89: =((F89+G89+H89)/3) -> 78035.55556
A90: 2.4.1.4.50.0.0.00.00.00 | B90: Transf. De Convênios da União para SUS (Saúde) | C90: 0 | D90: 238856 | F90: 79618.66667 | G90: 106158.2222 | H90: 61925.62963 | I90: 82567.50617
A91: 2.4.1.4.51.0.0.00.00.00 | B91: Transf.de Convênio da União p/ Programas de Educação | C91: 0 | D91: 0 | F91: 0 | G91: 0 | H91: 0 | I91: 0
A92: 2.4.1.4.99.0.0.AA.00.00 | B92: Transf.de Convênio da União p/ Programas de Assistência Social | C92: 0 | D92: 0 | F92: 0 | G92: =((D92+E92+F92)/3) -> 0 | H92: =((E92+F92+G92)/3) -> 0 | I92: =((F92+G92+H92)/3) -> 0
A93: 2.4.1.4.99.0.0.BB.00.00 | B93: Demais Transf. De Convênios da União | C93: 0 | D93: 0 | F93: 0 | G93: 0 | H93: 0 | I93: 0
A94: 2.4.1.9.99.0.0.00.00.00 | B94: Outras Transf. de Recursos da União | C94: 700000 | D94: 1200000 | F94: 633333.3333 | G94: =((D94+E94+F94)/3) -> 611111.1111 | H94: =((E94+F94+G94)/3) -> 414814.8148 | I94: =((F94+G94+H94)/3) -> 553086.4198
A95: 2.4.2.1.50.0.0.00.00.00 | B95: Transf.de Recursos do SUS - FES (estado - repaqsses fundo a fundo) | C95: 0 | D95: 150000 | F95: 50000 | G95: 66666.66667 | H95: 38888.88889 | I95: 51851.85185
A96: 2.4.2.2.50.0.0.00.00.00 | B96: Trnans.de Convênio do Estado para o SUS | C96: 0 | D96: 0 | F96: 0 | G96: =((D96+E96+F96)/3) -> 0 | H96: =((E96+F96+G96)/3) -> 0 | I96: =((F96+G96+H96)/3) -> 0
A97: 2.4.2.2.51.0.0.00.00.00 | B97: Transf.de Convênios do Estado p/ Programas de Educação | C97: 0 | D97: 0 | F97: 0 | G97: 0 | H97: 0 | I97: 0
A98: 2.4.2..2.99.0.0.AA.00.00 | B98: Transf.de Convênios do Estado p/ Programas de Assistência Social | C98: 0 | D98: 0 | F98: 0 | G98: =((D98+E98+F98)/3) -> 0 | H98: =((E98+F98+G98)/3) -> 0 | I98: =((F98+G98+H98)/3) -> 0
A99: 2.4.2.2.99.0.0.BB.00.00 | B99: Outras Transf.de Convênio do Estado | C99: 234693.33 | D99: 0 | F99: =((C99+D99+E99)/3) -> 78231.11 | G99: 26077.03667 | H99: 34769.38222 | I99: 46359.1763
A100: 2.4.3.0.00.0.0.00.00.00 | B100: Transferências dos Municípios e de suas Entidades | C100: 0 | D100: 0 | F100: 0 | G100: 0 | H100: 0 | I100: 0
A101: 2.4.4.0.00.0.0.00.00.00 | B101: Transferências de Instituições Privadas | C101: 0 | D101: 0 | F101: 0 | G101: 0 | H101: 0 | I101: 0
A102: 2.4.5.0.00.0.0.00.00.00 | B102: Transferências de Outras Instituições Públicas | C102: 0 | D102: 0 | F102: 0 | G102: 0 | H102: 0 | I102: 0
A103: 2.4.6.0.00.0.0.00.00.00 | B103: Transferências do Exterior | C103: 0 | D103: 0 | F103: 0 | G103: 0 | H103: 0 | I103: 0
A104: 2.4.7.0.00.0.0.00.00.00 | B104: Transferências de Pessoas Físicas | C104: 0 | D104: 0 | F104: 0 | G104: 0 | H104: 0 | I104: 0
A105: 2.9.0.0.00.0.0.00.00.00 | B105: Outras Receitas de Capital | C105: =C106+C107 -> 0 | D105: 0 | E105: 0 | F105: 0 | G105: 0 | H105: 0 | I105: 0
A106: 2.9.9.0.00.1.0.01.00.00 | B106: Outras Receitas Diretamente Arrecadadas pelo RPPS | C106: 0 | D106: 0 | F106: =((C106+D106+E106)/3)*(1+Parâmetros!C11) -> 0 | G106: =((D106+E106+F106)/3)*(1+Parâmetros!D11) -> 0 | H106: =((E106+F106+G106)/3)*(1+Parâmetros!E11) -> 0 | I106: =((F106+G106+H106)/3)*(1+Parâmetros!F11) -> 0
A107: 2.9.9.0.00.1.0.AA.00.00 | B107: Demais Receitas de Capital | C107: 0 | D107: 0 | F107: =((C107+D107+E107)/3)*(1+Parâmetros!C11) -> 0 | G107: =((D107+E107+F107)/3)*(1+Parâmetros!D11) -> 0 | H107: =((E107+F107+G107)/3)*(1+Parâmetros!E11) -> 0 | I107: =((F107+G107+H107)/3)*(1+Parâmetros!F11) -> 0
A108: 7.0.0.0.00.0.0.00.00.00 | B108: Receitas Correntes Intraorçamentárias | C108: =C109+C110+C111 -> 9460678.64 | D108: 10524096.74 | E108: 11917585.63 | F108: 11112655.75 | G108: 11632170.55 | H108: 11996660.77 | I108: =I109+I110+I111 -> 12020554.53
A109: 7.0.0.0.00.0.0.00.00.00 | B109: Receitas Correntes Intraorçamentárias -RPPS | C109: 9210612.55 | D109: 10263919.25 | E109: 11615900 | F109: =((C109+D109+E109)/3)*(1+Parâmetros!C11) -> 10829833.74 | G109: =((D109+E109+F109)/3)*(1+Parâmetros!D11) -> 11339346.37 | H109: =((E109+F109+G109)/3)*(1+Parâmetros!E11) -> 11693016.23 | I109: =((F109+G109+H109)/3)*(1+Parâmetros!F11) -> 11716319.93
A110: 7.0.0.0.00.0.0.00.00.00 | B110: Receitas Correntes Intraorçamentárias - Outras | D110: 324.35 | E110: =10000 -> 10000 | F110: =((C110+D110+E110)/3)*(1+Parâmetros!C11) -> 3596.31525 | G110: =((D110+E110+F110)/3)*(1+Parâmetros!D11) -> 4825.83062 | H110: =((E110+F110+G110)/3)*(1+Parâmetros!E11) -> 6375.904686 | I110: =((F110+G110+H110)/3)*(1+Parâmetros!F11) -> 5120.125492
A111: 7.0.0.0.00.0.0.00.00.00 | B111: Receitas Correntes Intraorçamentárias - Autarquia | C111: 250066.09 | D111: 259853.14 | E111: 291685.63 | F111: =((C111+D111+E111)/3)*(1+Parâmetros!C11) -> 279225.6929 | G111: =((D111+E111+F111)/3)*(1+Parâmetros!D11) -> 287998.3471 | H111: =((E111+F111+G111)/3)*(1+Parâmetros!E11) -> 297268.6368 | I111: =((F111+G111+H111)/3)*(1+Parâmetros!F11) -> 299114.4662
A112: 8.0.0.0.00.0.0.00.00.00 | B112: Receitas de Capital Intraorçamentárias | C112: =C113+C114 -> 0 | D112: 0 | E112: 0 | F112: 0 | G112: 0 | H112: 0 | I112: 0
A113: 8.0.0.0.00.0.0.00.00.00 | B113: Receitas de Capital Intraorçamentárias - RPPS | C113: 0 | D113: 0 | E113: 0 | F113: =((C113+D113+E113)/3)*(1+Parâmetros!C11) -> 0 | G113: =((D113+E113+F113)/3)*(1+Parâmetros!D11) -> 0 | H113: =((E113+F113+G113)/3)*(1+Parâmetros!E11) -> 0 | I113: =((F113+G113+H113)/3)*(1+Parâmetros!F11) -> 0
A114: 8.0.0.0.00.0.0.00.00.00 | B114: Receitas de Capital Intraorçamentárias - Outras | C114: 0 | D114: 0 | E114: 0 | F114: =((C114+D114+E114)/3)*(1+Parâmetros!C11) -> 0 | G114: =((D114+E114+F114)/3)*(1+Parâmetros!D11) -> 0 | H114: =((E114+F114+G114)/3)*(1+Parâmetros!E11) -> 0 | I114: =((F114+G114+H114)/3)*(1+Parâmetros!F11) -> 0
A115: 6.2.1.3.0.00.00.00.00 | B115: ( R ) Deduções da Receita | C115: =C116+C117+C118+C119+C120 -> -14338534.99 | D115: =D116+D117+D118+D119+D120 -> -17685919.72 | E115: =E116+E117+E118+E120 -> -13722510 | F115: =F116+F117+F118+F119+F120 -> -15976685.74 | G115: =G116+G117+G118+G119+G120 -> -16515430.7 | H115: =H116+H117+H118+H119+H120 -> -16090633.22 | I115: =I116+I117+I118+I119+I120 -> -16701184.1
A116: 6.2.1.3.0.00.00.00.00 | B116: Deduções da Receita de Impostos (digitar com sinal negativo) | C116: -1351858.33 | D116: -1569424.38 | F116: =((C116+D116+E116)/3)*(1+Parâmetros!C11)*(1+Parâmetros!C15) -> -1076599.792 | G116: =((D116+E116+F116)/3)*(1+Parâmetros!D11)*(1+Parâmetros!D15) -> -970674.5634 | H116: =((E116+F116+G116)/3)*(1+Parâmetros!E11)*(1+Parâmetros!E15) -> -749658.2305 | I116: =((F116+G116+H116)/3)*(1+Parâmetros!F11)*(1+Parâmetros!F15) -> -1024835.257
A117: 6.2.1.3.0.00.00.00.00 | B117: Deduções para o FUNDEB | C117: =-(C40+C42+C55+C56+C57+C66)*0.2 -> -11031229.56 | D117: -12803788.87 | E117: -13722510 | F117: =-(F40+F42+F55+F56+F57+F66)*0.2 -> -12839033.08 | G117: -13456954.77 | H117: -13680526.03 | I117: -13666329.94
A118: 6.2.1.3.0.00.00.00.00 | B118: Demais Deduções da Receita Corrente (digitar com sinal negativo) | C118: =-1955442.99+1562985.7 -> -392457.29 | D118: =-3312704.26+2831211.15 -> -481493.11 | F118: =((C118+D118+E118)/3)*(1+Parâmetros!C11) -> -304426.056 | G118: =((D118+E118+F118)/3)*(1+Parâmetros!D11) -> -272451.9775 | H118: =((E118+F118+G118)/3)*(1+Parâmetros!E11) -> -199657.4874 | I118: =((F118+G118+H118)/3)*(1+Parâmetros!F11) -> -268681.2903
A119: 6.2.1.3.0.00.00.00.00 | B119: Demais Deduções da Receita Corrente - RPPS (digitar com sinal negativo) | C119: -1562985.7 | D119: -2831211.15 | E119: -648744.61 | F119: =((C119+D119+E119)/3)*(1+Parâmetros!C11) -> -1756624.609 | G119: =((D119+E119+F119)/3)*(1+Parâmetros!D11) -> -1815347.861 | H119: =((E119+F119+G119)/3)*(1+Parâmetros!E11) -> -1460790.181 | I119: =((F119+G119+H119)/3)*(1+Parâmetros!F11) -> -1741335.877
A120: 6.2.1.3.0.00.00.00.00 | B120: Demais Deduções da Receita de Capital (digitar com sinal negativo) | C120: -4.11 | D120: -2.21 | E120: 0 | F120: =((C120+D120+E120)/3)*(1+Parâmetros!C11) -> -2.201466667 | G120: =((D120+E120+F120)/3)*(1+Parâmetros!D11) -> -1.529308444 | H120: =((E120+F120+G120)/3)*(1+Parâmetros!E11) -> -1.291221266 | I120: =((F120+G120+H120)/3)*(1+Parâmetros!F11) -> -1.737610746
B121: TOTAL DAS RECEITAS | C121: =C8+C82+C108+C112+C115 -> 164055339.3 | D121: 173118365.7 | E121: 181833556.4 | F121: 184088405.7 | G121: 184761773.5 | H121: 189756897.9 | I121: =I8+I82+I108+I112+I115 -> 178379347.2
B123: Informação Complementar | C123: =C7 -> 2023 | D123: 2024 | E123: 2025 | F123: 2026 | G123: 2027 | H123: 2028 | I123: 2029
B124: Recursos Próprios Aportados para o Fundo Municipal de Assistência Social | C124: 729864.99 | D124: 1054410.18 | E124: 1100000 | F124: =((C124+D124+E124)/3)*(1+Parâmetros!C11) -> 1004689.184 | G124: =((D124+E124+F124)/3)*(1+Parâmetros!D11) -> 1095154.446 | H124: =((E124+F124+G124)/3)*(1+Parâmetros!E11) -> 1107465.881 | I124: =((F124+G124+H124)/3)*(1+Parâmetros!F11) -> 1109729.091
A127: =Parâmetros!A7 -> Município de :
A128: =Parâmetros!A8 -> PLANO PLURIANUAL 2026 - 2029
A129: Memória de Cálculo das Estimativas de Despesas Fixas / Obrigatórias
I130: Valores em R$ 1,00
B131: CONTAS | C131: EXECUTADA | D131: EXECUTADA | E131: EXECUTADA | F131: PROJETADA | G131: PROJETADA | H131: PROJETADA | I131: PROJETADA
B132: CONSOLIDADAS ANUAIS | C132: =C7 -> 2023 | D132: =C132+1 -> 2024 | E132: 2025 | F132: 2026 | G132: 2027 | H132: 2028 | I132: 2029
A133: 3.1.00.00.00.00.00 | B133: Pessoal e Encargos Sociais | C133: =SUM(C134:C139) -> 59600622.18 | D133: 66246461.97 | E133: 67962600 | F133: 69897056.33 | G133: 73971349.51 | H133: 76792773.14 | I133: 79971528.02
B134: Pessoal e Encargos Sociais - Poder Legislativo | C134: =367919.11+77385.67+990 -> 446294.78 | D134: =390013.52+38767.72+2863.55 -> 431644.79 | E134: =450000+110000+5000 -> 565000 | F134: =((C134+D134+E134)/3)*(1+Parâmetros!C11)*(1+Parâmetros!C13)*(1+Parâmetros!C19) -> 510263.8343 | G134: =((D134+E134+F134)/3)*(1+Parâmetros!D11)*(1+Parâmetros!D13)*(1+Parâmetros!D19) -> 530335.3936 | H134: =((E134+F134+G134)/3)*(1+Parâmetros!E11)*(1+Parâmetros!E13)*(1+Parâmetros!E19) -> 564144.5007 | I134: =((F134+G134+H134)/3)*(1+Parâmetros!F11)*(1+Parâmetros!F13)*(1+Parâmetros!F19) -> 563680.9983
B135: Pessoal e Encargos Sociais - Saúde | C135: =8100190+260811.17 -> 8361001.17 | D135: =9317549.9 -> 9317549.9 | E135: =10626000-825500 -> 9800500 | F135: =((C135+D135+E135)/3)*(1+Parâmetros!C11)*(1+Parâmetros!C13)*(1+Parâmetros!C18) -> 9911709.109 | G135: =((D135+E135+F135)/3)*(1+Parâmetros!D11)*(1+Parâmetros!D13)*(1+Parâmetros!D18) -> 10523115.78 | H135: =((E135+F135+G135)/3)*(1+Parâmetros!E11)*(1+Parâmetros!E13)*(1+Parâmetros!E18) -> 10963457.7 | I135: =((F135+G135+H135)/3)*(1+Parâmetros!F11)*(1+Parâmetros!F13)*(1+Parâmetros!F18) -> 11381861.57
B136: Pessoal e Encargos Sociais - Educação | C136: =32299037.6+1026123.48 -> 33325161.08 | D136: =35853468.15 -> 35853468.15 | E136: 35618100 | F136: =((C136+D136+E136)/3)*(1+Parâmetros!C11)*(1+Parâmetros!C13)*(1+Parâmetros!C18) -> 37800238.92 | G136: =((D136+E136+F136)/3)*(1+Parâmetros!D11)*(1+Parâmetros!D13)*(1+Parâmetros!D18) -> 39610383.17 | H136: =((E136+F136+G136)/3)*(1+Parâmetros!E11)*(1+Parâmetros!E13)*(1+Parâmetros!E18) -> 40984696.48 | I136: =((F136+G136+H136)/3)*(1+Parâmetros!F11)*(1+Parâmetros!F13)*(1+Parâmetros!F18) -> 42918243.12
B137: Pessoal e Encargos Sociais - Assist. Social | C137: =320102.73+8182.71 -> 328285.44 | D137: =358490.11 -> 358490.11 | E137: 825500 | F137: =((C137+D137+E137)/3)*(1+Parâmetros!C11)*(1+Parâmetros!C13)*(1+Parâmetros!C18) -> 545478.6378 | G137: =((D137+E137+F137)/3)*(1+Parâmetros!D11)*(1+Parâmetros!D13)*(1+Parâmetros!D18) -> 626922.1826 | H137: =((E137+F137+G137)/3)*(1+Parâmetros!E11)*(1+Parâmetros!E13)*(1+Parâmetros!E18) -> 724447.3546 | I137: =((F137+G137+H137)/3)*(1+Parâmetros!F11)*(1+Parâmetros!F13)*(1+Parâmetros!F18) -> 687606.5044
B138: Pessoal e Encargos Sociais - Do RPPS | C138: =5803510.89+570878.52+978.2 -> 6375367.61 | D138: =6610127.45+625920.28 -> 7236047.73 | E138: 8160000 | F138: =((C138+D138+E138)/3)*(1+Parâmetros!C11)*(1+Parâmetros!C13)*(1+Parâmetros!C18) -> 7852961.705 | G138: =((D138+E138+F138)/3)*(1+Parâmetros!D11)*(1+Parâmetros!D13)*(1+Parâmetros!D18) -> 8427628.286 | H138: =((E138+F138+G138)/3)*(1+Parâmetros!E11)*(1+Parâmetros!E13)*(1+Parâmetros!E18) -> 8862262.122 | I138: =((F138+G138+H138)/3)*(1+Parâmetros!F11)*(1+Parâmetros!F13)*(1+Parâmetros!F18) -> 9114271.179
B139: Pessoal e Encargos Sociais - Demais Áreas | C139: =58040180.96-47539024.52+1558473.02-260811.17-1026123.48-8182.71 -> 10764512.1 | D139: =64566586.23-53194337.13+1677012.19 -> 13049261.29 | E139: =25000+5000+1500000+112000+10000+30000+288000+1295000+915300+872000+3960500+1290000+736000+1954700 -> 12993500 | F139: =((C139+D139+E139)/3)*(1+Parâmetros!C11)*(1+Parâmetros!C13)*(1+Parâmetros!C18) -> 13276404.12 | G139: =((D139+E139+F139)/3)*(1+Parâmetros!D11)*(1+Parâmetros!D13)*(1+Parâmetros!D18) -> 14252964.69 | H139: =((E139+F139+G139)/3)*(1+Parâmetros!E11)*(1+Parâmetros!E13)*(1+Parâmetros!E18) -> 14693764.98 | I139: =((F139+G139+H139)/3)*(1+Parâmetros!F11)*(1+Parâmetros!F13)*(1+Parâmetros!F18) -> 15305864.65
A140: 3.2.00.00.00.00.00 | B140: Juros e Encargos da Dívida | C140: =SUM(C141:C146) -> 0 | D140: 0 | E140: 0 | F140: 0 | G140: 0 | H140: 0 | I140: 0
B141: Juros e Encargos da Dívida - Poder Legislativo | F141: =((C141+D141+E141)/3)*(1+Parâmetros!C11) -> 0 | G141: =((D141+E141+F141)/3)*(1+Parâmetros!D11) -> 0 | H141: =((E141+F141+G141)/3)*(1+Parâmetros!E11) -> 0 | I141: =((F141+G141+H141)/3)*(1+Parâmetros!F11) -> 0
B142: Juros e Encargos da Dívida - Saúde | F142: =((C142+D142+E142)/3)*(1+Parâmetros!C11) -> 0 | G142: =((D142+E142+F142)/3)*(1+Parâmetros!D11) -> 0 | H142: =((E142+F142+G142)/3)*(1+Parâmetros!E11) -> 0 | I142: =((F142+G142+H142)/3)*(1+Parâmetros!F11) -> 0
B143: Juros e Encargos da Dívida - Educação | F143: =((C143+D143+E143)/3)*(1+Parâmetros!C11) -> 0 | G143: =((D143+E143+F143)/3)*(1+Parâmetros!D11) -> 0 | H143: =((E143+F143+G143)/3)*(1+Parâmetros!E11) -> 0 | I143: =((F143+G143+H143)/3)*(1+Parâmetros!F11) -> 0
B144: Juros e Encargos da Dívida - Assist. Social | F144: =((C144+D144+E144)/3)*(1+Parâmetros!C11) -> 0 | G144: =((D144+E144+F144)/3)*(1+Parâmetros!D11) -> 0 | H144: =((E144+F144+G144)/3)*(1+Parâmetros!E11) -> 0 | I144: =((F144+G144+H144)/3)*(1+Parâmetros!F11) -> 0
B145: Juros e Encargos da Dívida - Do RPPS | F145: =((C145+D145+E145)/3)*(1+Parâmetros!C11) -> 0 | G145: =((D145+E145+F145)/3)*(1+Parâmetros!D11) -> 0 | H145: =((E145+F145+G145)/3)*(1+Parâmetros!E11) -> 0 | I145: =((F145+G145+H145)/3)*(1+Parâmetros!F11) -> 0
B146: Juros e Encargos da Dívida - Demais Áreas | F146: =((C146+D146+E146)/3)*(1+Parâmetros!C11) -> 0 | G146: =((D146+E146+F146)/3)*(1+Parâmetros!D11) -> 0 | H146: =((E146+F146+G146)/3)*(1+Parâmetros!E11) -> 0 | I146: =((F146+G146+H146)/3)*(1+Parâmetros!F11) -> 0
A147: 3.3.XX.08.00.00.00 | B147: Outros Benefícios Assistênciais do Servidor e do Militar | C147: =SUM(C148:C153) -> 0 | D147: 0 | E147: 0 | F147: 0 | G147: 0 | H147: 0 | I147: 0
B148: Outros Benef.Assistênciais - Poder Legislativo | F148: =((C148+D148+E148)/3)*(1+Parâmetros!C11)*(1+Parâmetros!C14) -> 0 | G148: =((D148+E148+F148)/3)*(1+Parâmetros!D11)*(1+Parâmetros!D14) -> 0 | H148: =((E148+F148+G148)/3)*(1+Parâmetros!E11)*(1+Parâmetros!E14) -> 0 | I148: =((F148+G148+H148)/3)*(1+Parâmetros!F11)*(1+Parâmetros!F14) -> 0
B149: Outros Benef.Assistênciais - Saúde | F149: =((C149+D149+E149)/3)*(1+Parâmetros!C11)*(1+Parâmetros!C14) -> 0 | G149: =((D149+E149+F149)/3)*(1+Parâmetros!D11)*(1+Parâmetros!D14) -> 0 | H149: =((E149+F149+G149)/3)*(1+Parâmetros!E11)*(1+Parâmetros!E14) -> 0 | I149: =((F149+G149+H149)/3)*(1+Parâmetros!F11)*(1+Parâmetros!F14) -> 0
B150: Outros Benef.Assistênciais - Educação | F150: =((C150+D150+E150)/3)*(1+Parâmetros!C11)*(1+Parâmetros!C14) -> 0 | G150: =((D150+E150+F150)/3)*(1+Parâmetros!D11)*(1+Parâmetros!D14) -> 0 | H150: =((E150+F150+G150)/3)*(1+Parâmetros!E11)*(1+Parâmetros!E14) -> 0 | I150: =((F150+G150+H150)/3)*(1+Parâmetros!F11)*(1+Parâmetros!F14) -> 0
B151: Outros Benef.Assistênciais - Assist. Social | F151: =((C151+D151+E151)/3)*(1+Parâmetros!C11)*(1+Parâmetros!C14) -> 0 | G151: =((D151+E151+F151)/3)*(1+Parâmetros!D11)*(1+Parâmetros!D14) -> 0 | H151: =((E151+F151+G151)/3)*(1+Parâmetros!E11)*(1+Parâmetros!E14) -> 0 | I151: =((F151+G151+H151)/3)*(1+Parâmetros!F11)*(1+Parâmetros!F14) -> 0
B152: Outros Benef.Assistênciais - Do RPPS | F152: =((C152+D152+E152)/3)*(1+Parâmetros!C11)*(1+Parâmetros!C14) -> 0 | G152: =((D152+E152+F152)/3)*(1+Parâmetros!D11)*(1+Parâmetros!D14) -> 0 | H152: =((E152+F152+G152)/3)*(1+Parâmetros!E11)*(1+Parâmetros!E14) -> 0 | I152: =((F152+G152+H152)/3)*(1+Parâmetros!F11)*(1+Parâmetros!F14) -> 0
B153: Outros Benef.Assistênciais - Demais Áreas | F153: =((C153+D153+E153)/3)*(1+Parâmetros!C11)*(1+Parâmetros!C14) -> 0 | G153: =((D153+E153+F153)/3)*(1+Parâmetros!D11)*(1+Parâmetros!D14) -> 0 | H153: =((E153+F153+G153)/3)*(1+Parâmetros!E11)*(1+Parâmetros!E14) -> 0 | I153: =((F153+G153+H153)/3)*(1+Parâmetros!F11)*(1+Parâmetros!F14) -> 0
A154: 3.3.XX.46.00.00.00 | B154: Auxílio - Alimentação | C154: =SUM(C155:C160) -> 4254797.73 | D154: 4605317.36 | E154: 4725800 | F154: 4732427.09 | G154: 4875362.076 | H154: 4960855.21 | I154: 5040750.954
B155: Auxílio - Alimentação - Poder Legislativo | C155: 6556.16 | D155: 1056.17 | E155: 22000 | F155: =((C155+D155+E155)/3)*(1+Parâmetros!C11)*(1+Parâmetros!C14) -> 10314.96162 | G155: =((D155+E155+F155)/3)*(1+Parâmetros!D11)*(1+Parâmetros!D14) -> 11568.65896 | H155: =((E155+F155+G155)/3)*(1+Parâmetros!E11)*(1+Parâmetros!E14) -> 15188.12108 | I155: =((F155+G155+H155)/3)*(1+Parâmetros!F11)*(1+Parâmetros!F14) -> 12826.82261
B156: Auxílio - Alimentação - Saúde | C156: 656254.4 | D156: =747554.12 -> 747554.12 | E156: 740000 | F156: =((C156+D156+E156)/3)*(1+Parâmetros!C11)*(1+Parâmetros!C14) -> 746759.9678 | G156: =((D156+E156+F156)/3)*(1+Parâmetros!D11)*(1+Parâmetros!D14) -> 774562.2171 | H156: =((E156+F156+G156)/3)*(1+Parâmetros!E11)*(1+Parâmetros!E14) -> 782643.6082 | I156: =((F156+G156+H156)/3)*(1+Parâmetros!F11)*(1+Parâmetros!F14) -> 797172.1644
B157: Auxílio - Alimentação - Educação | C157: 2775479.13 | D157: 2953640.26 | E157: =70000+260000+40000+890000+1690000 -> 2950000 | F157: =((C157+D157+E157)/3)*(1+Parâmetros!C11)*(1+Parâmetros!C14) -> 3023226.588 | G157: =((D157+E157+F157)/3)*(1+Parâmetros!D11)*(1+Parâmetros!D14) -> 3094647.174 | H157: =((E157+F157+G157)/3)*(1+Parâmetros!E11)*(1+Parâmetros!E14) -> 3138391.109 | I157: =((F157+G157+H157)/3)*(1+Parâmetros!F11)*(1+Parâmetros!F14) -> 3202667.645
B158: Auxílio - Alimentação - Assist. Social | C158: 28854.21 | D158: 26812.36 | E158: =50000+28000 -> 78000 | F158: =((C158+D158+E158)/3)*(1+Parâmetros!C11)*(1+Parâmetros!C14) -> 46560.52188 | G158: =((D158+E158+F158)/3)*(1+Parâmetros!D11)*(1+Parâmetros!D14) -> 52475.93239 | H158: =((E158+F158+G158)/3)*(1+Parâmetros!E11)*(1+Parâmetros!E14) -> 61272.31682 | I158: =((F158+G158+H158)/3)*(1+Parâmetros!F11)*(1+Parâmetros!F14) -> 55466.8348
B159: Auxílio - Alimentação - Do Rpps | F159: =((C159+D159+E159)/3)*(1+Parâmetros!C11)*(1+Parâmetros!C14) -> 0 | G159: =((D159+E159+F159)/3)*(1+Parâmetros!D11)*(1+Parâmetros!D14) -> 0 | H159: =((E159+F159+G159)/3)*(1+Parâmetros!E11)*(1+Parâmetros!E14) -> 0 | I159: =((F159+G159+H159)/3)*(1+Parâmetros!F11)*(1+Parâmetros!F14) -> 0
B160: Auxílio - Alimentação - Demais Áreas | C160: =4254797.73-3467143.9 -> 787653.83 | D160: =4605317.36-3729062.91 -> 876254.45 | E160: =125000+117800+10000+50000+115000+89000+260000+60000+41000+50000+18000 -> 935800 | F160: =((C160+D160+E160)/3)*(1+Parâmetros!C11)*(1+Parâmetros!C14) -> 905565.0509 | G160: =((D160+E160+F160)/3)*(1+Parâmetros!D11)*(1+Parâmetros!D14) -> 942108.0936 | H160: =((E160+F160+G160)/3)*(1+Parâmetros!E11)*(1+Parâmetros!E14) -> 963360.0553 | I160: =((F160+G160+H160)/3)*(1+Parâmetros!F11)*(1+Parâmetros!F14) -> 972617.4871
A161: 3.3.XX.47.00.00.00 | B161: Obrigações Tributárias e Contributivas | C161: =SUM(C162:C167) -> 1566064.17 | D161: 1723424.59 | E161: 2430700 | F161: 1992532.418 | G161: 2130841.096 | H161: 2268364.843 | I161: 2211541.472
B162: Obrigações Tributárias e Contributivas - Poder Legislativo | D162: 250 | E162: 2000 | F162: =((C162+D162+E162)/3)*(1+Parâmetros!C11) -> 783.75 | G162: =((D162+E162+F162)/3)*(1+Parâmetros!D11) -> 1051.7 | H162: =((E162+F162+G162)/3)*(1+Parâmetros!E11) -> 1327.449245 | I162: =((F162+G162+H162)/3)*(1+Parâmetros!F11) -> 1094.363139
B163: Obrigações Tributárias e Contributivas - Saúde | C163: 180.18 | F163: =((C163+D163+E163)/3)*(1+Parâmetros!C11) -> 62.7627 | G163: =((D163+E163+F163)/3)*(1+Parâmetros!D11) -> 21.757736 | H163: =((E163+F163+G163)/3)*(1+Parâmetros!E11) -> 29.2525229 | I163: =((F163+G163+H163)/3)*(1+Parâmetros!F11) -> 39.36544378
B164: Obrigações Tributárias e Contributivas - Educação | C164: 1118.5 | D164: 4186.35 | F164: =((C164+D164+E164)/3)*(1+Parâmetros!C11) -> 1847.856083 | G164: =((D164+E164+F164)/3)*(1+Parâmetros!D11) -> 2091.858109 | H164: =((E164+F164+G164)/3)*(1+Parâmetros!E11) -> 1363.535082 | I164: =((F164+G164+H164)/3)*(1+Parâmetros!F11) -> 1834.924249
B165: Obrigações Tributárias e Contributivas - Assist. Social | C165: 320 | F165: =((C165+D165+E165)/3)*(1+Parâmetros!C11) -> 111.4666667 | G165: =((D165+E165+F165)/3)*(1+Parâmetros!D11) -> 38.64177778 | H165: =((E165+F165+G165)/3)*(1+Parâmetros!E11) -> 51.95253262 | I165: =((F165+G165+H165)/3)*(1+Parâmetros!F11) -> 69.91309807
B166: Obrigações Tributárias e Contributivas - do RPPS | F166: =((C166+D166+E166)/3)*(1+Parâmetros!C11) -> 0 | G166: =((D166+E166+F166)/3)*(1+Parâmetros!D11) -> 0 | H166: =((E166+F166+G166)/3)*(1+Parâmetros!E11) -> 0 | I166: =((F166+G166+H166)/3)*(1+Parâmetros!F11) -> 0
B167: Obrigações Tributárias e Contributivas -Demais Áreas | C167: =1566064.17-1618.68 -> 1564445.49 | D167: =1723424.59-4436.35 -> 1718988.24 | E167: 2428700 | F167: =((C167+D167+E167)/3)*(1+Parâmetros!C11) -> 1989726.583 | G167: =((D167+E167+F167)/3)*(1+Parâmetros!D11) -> 2127637.139 | H167: =((E167+F167+G167)/3)*(1+Parâmetros!E11) -> 2265592.654 | I167: =((F167+G167+H167)/3)*(1+Parâmetros!F11) -> 2208502.906
A168: 3.3.XX.91.00.00.00 | B168: Sentenças Judiciais (Exceto Precatórios de Pessoal) | C168: =SUM(C169:C174) -> 567040.16 | D168: 543757.33 | E168: 888800 | F168: 696526.459 | G168: 738082.3802 | H168: 804131.7993 | I168: 774604.2609
B169: Sentenças Judiciais - Poder Legislativo | F169: =((C169+D169+E169)/3)*(1+Parâmetros!C11) -> 0 | G169: =((D169+E169+F169)/3)*(1+Parâmetros!D11) -> 0 | H169: =((E169+F169+G169)/3)*(1+Parâmetros!E11) -> 0 | I169: =((F169+G169+H169)/3)*(1+Parâmetros!F11) -> 0
B170: Sentenças Judiciais - Saúde | C170: 554694.05 | D170: 519364.47 | E170: =56800+283000 -> 339800 | F170: =((C170+D170+E170)/3)*(1+Parâmetros!C11) -> 492494.0511 | G170: =((D170+E170+F170)/3)*(1+Parâmetros!D11) -> 468574.954 | H170: =((E170+F170+G170)/3)*(1+Parâmetros!E11) -> 450230.7627 | I170: =((F170+G170+H170)/3)*(1+Parâmetros!F11) -> 488309.7197
B171: Sentenças Judiciais - Educação | F171: =((C171+D171+E171)/3)*(1+Parâmetros!C11) -> 0 | G171: =((D171+E171+F171)/3)*(1+Parâmetros!D11) -> 0 | H171: =((E171+F171+G171)/3)*(1+Parâmetros!E11) -> 0 | I171: =((F171+G171+H171)/3)*(1+Parâmetros!F11) -> 0
B172: Sentenças Judiciais - Assist. Social | F172: =((C172+D172+E172)/3)*(1+Parâmetros!C11) -> 0 | G172: =((D172+E172+F172)/3)*(1+Parâmetros!D11) -> 0 | H172: =((E172+F172+G172)/3)*(1+Parâmetros!E11) -> 0 | I172: =((F172+G172+H172)/3)*(1+Parâmetros!F11) -> 0
B173: Sentenças Judiciais - Do RPPS | F173: =((C173+D173+E173)/3)*(1+Parâmetros!C11) -> 0 | G173: =((D173+E173+F173)/3)*(1+Parâmetros!D11) -> 0 | H173: =((E173+F173+G173)/3)*(1+Parâmetros!E11) -> 0 | I173: =((F173+G173+H173)/3)*(1+Parâmetros!F11) -> 0
B174: Sentenças Judiciais - Demais Áreas | C174: =567040.16-554694.05 -> 12346.11 | D174: =543757.33-519364.47 -> 24392.86 | E174: =150000+399000 -> 549000 | F174: =((C174+D174+E174)/3)*(1+Parâmetros!C11) -> 204032.4079 | G174: =((D174+E174+F174)/3)*(1+Parâmetros!D11) -> 269507.4262 | H174: =((E174+F174+G174)/3)*(1+Parâmetros!E11) -> 353901.0366 | I174: =((F174+G174+H174)/3)*(1+Parâmetros!F11) -> 286294.5412
A175: 3.3.XX.93.00.00.00 | B175: Indenizações e Restituições | C175: =SUM(C176:C181) -> 57471.33 | D175: 74700.47 | E175: 105540 | F175: 82802.94367 | G175: 91188.3834 | H175: 96745.7923 | I175: 93675.0433
B176: Indenizações e Restituições - Poder Legislativo | F176: =((C176+D176+E176)/3)*(1+Parâmetros!C11) -> 0 | G176: =((D176+E176+F176)/3)*(1+Parâmetros!D11) -> 0 | H176: =((E176+F176+G176)/3)*(1+Parâmetros!E11) -> 0 | I176: =((F176+G176+H176)/3)*(1+Parâmetros!F11) -> 0
B177: Indenizações e Restituições - Saúde | C177: 57471.33 | D177: 57312.32 | E177: =92240+1800 -> 94040 | F177: =((C177+D177+E177)/3)*(1+Parâmetros!C11) -> 72740.23808 | G177: =((D177+E177+F177)/3)*(1+Parâmetros!D11) -> 77685.42014 | H177: =((E177+F177+G177)/3)*(1+Parâmetros!E11) -> 84609.56431 | I177: =((F177+G177+H177)/3)*(1+Parâmetros!F11) -> 81322.18699
B178: Indenizações e Restituições - Educação | F178: =((C178+D178+E178)/3)*(1+Parâmetros!C11) -> 0 | G178: =((D178+E178+F178)/3)*(1+Parâmetros!D11) -> 0 | H178: =((E178+F178+G178)/3)*(1+Parâmetros!E11) -> 0 | I178: =((F178+G178+H178)/3)*(1+Parâmetros!F11) -> 0
B179: Indenizações e Restituições - Assist. Social | F179: =((C179+D179+E179)/3)*(1+Parâmetros!C11) -> 0 | G179: =((D179+E179+F179)/3)*(1+Parâmetros!D11) -> 0 | H179: =((E179+F179+G179)/3)*(1+Parâmetros!E11) -> 0 | I179: =((F179+G179+H179)/3)*(1+Parâmetros!F11) -> 0
B180: Indenizações e Restituições - Do RPPS | D180: 350 | F180: =((C180+D180+E180)/3)*(1+Parâmetros!C11) -> 121.9166667 | G180: =((D180+E180+F180)/3)*(1+Parâmetros!D11) -> 163.5977778 | H180: =((E180+F180+G180)/3)*(1+Parâmetros!E11) -> 98.81654922 | I180: =((F180+G180+H180)/3)*(1+Parâmetros!F11) -> 132.9785238
B181: Indenizações e Restituições - Demais Áreas | D181: =74700.47-57662.32 -> 17038.15 | E181: =105540-94040 -> 11500 | F181: =((C181+D181+E181)/3)*(1+Parâmetros!C11) -> 9940.788917 | G181: =((D181+E181+F181)/3)*(1+Parâmetros!D11) -> 13339.36549 | H181: =((E181+F181+G181)/3)*(1+Parâmetros!E11) -> 12037.41144 | I181: =((F181+G181+H181)/3)*(1+Parâmetros!F11) -> 12219.87778
A182: 4.4.XX.93.00.00.00 | B182: Indenizações e Restituições | C182: =SUM(C183:C188) -> 0 | D182: 383549.08 | E182: 0 | F182: 133602.9295 | G182: 179279.3633 | H182: 108288.5616 | I182: 145725.1156
B183: Indenizações e Restituições - Poder Legislativo | F183: =((C183+D183+E183)/3)*(1+Parâmetros!C11) -> 0 | G183: =((D183+E183+F183)/3)*(1+Parâmetros!D11) -> 0 | H183: =((E183+F183+G183)/3)*(1+Parâmetros!E11) -> 0 | I183: =((F183+G183+H183)/3)*(1+Parâmetros!F11) -> 0
B184: Indenizações e Restituições - Saúde | F184: =((C184+D184+E184)/3)*(1+Parâmetros!C11) -> 0 | G184: =((D184+E184+F184)/3)*(1+Parâmetros!D11) -> 0 | H184: =((E184+F184+G184)/3)*(1+Parâmetros!E11) -> 0 | I184: =((F184+G184+H184)/3)*(1+Parâmetros!F11) -> 0
B185: Indenizações e Restituições - Educação | F185: =((C185+D185+E185)/3)*(1+Parâmetros!C11) -> 0 | G185: =((D185+E185+F185)/3)*(1+Parâmetros!D11) -> 0 | H185: =((E185+F185+G185)/3)*(1+Parâmetros!E11) -> 0 | I185: =((F185+G185+H185)/3)*(1+Parâmetros!F11) -> 0
B186: Indenizações e Restituições - Assist. Social | F186: =((C186+D186+E186)/3)*(1+Parâmetros!C11) -> 0 | G186: =((D186+E186+F186)/3)*(1+Parâmetros!D11) -> 0 | H186: =((E186+F186+G186)/3)*(1+Parâmetros!E11) -> 0 | I186: =((F186+G186+H186)/3)*(1+Parâmetros!F11) -> 0
B187: Indenizações e Restituições - Do RPPS | F187: =((C187+D187+E187)/3)*(1+Parâmetros!C11) -> 0 | G187: =((D187+E187+F187)/3)*(1+Parâmetros!D11) -> 0 | H187: =((E187+F187+G187)/3)*(1+Parâmetros!E11) -> 0 | I187: =((F187+G187+H187)/3)*(1+Parâmetros!F11) -> 0
B188: Indenizações e Restituições - Demais Áreas | D188: =169567.46+213981.62 -> 383549.08 | F188: =((C188+D188+E188)/3)*(1+Parâmetros!C11) -> 133602.9295 | G188: =((D188+E188+F188)/3)*(1+Parâmetros!D11) -> 179279.3633 | H188: =((E188+F188+G188)/3)*(1+Parâmetros!E11) -> 108288.5616 | I188: =((F188+G188+H188)/3)*(1+Parâmetros!F11) -> 145725.1156
A189: 4.6.00.00.00.00.00 | B189: Amortização da Dívida | C189: =SUM(C190:C195) -> 337500 | D189: 337500 | E189: 0 | F189: 225000 | G189: 187500 | H189: 137500 | I189: 183333.3333
B190: Amortização da Dívida - Poder Legislativo | F190: =((C190+D190+E190)/3) -> 0 | G190: 0 | H190: 0 | I190: 0
B191: Amortização da Dívida - Saúde | F191: 0 | G191: 0 | H191: 0 | I191: 0
B192: Amortização da Dívida - Educação | F192: 0 | G192: 0 | H192: 0 | I192: 0
B193: Amortização da Dívida - Assist. Social | F193: 0 | G193: 0 | H193: 0 | I193: 0
B194: Amortização da Dívida - Do RPPS | F194: 0 | G194: 0 | H194: 0 | I194: 0
B195: Amortização da Dívida - Demais Áreas | C195: 337500 | D195: 337500 | F195: 225000 | G195: 187500 | H195: 137500 | I195: 183333.3333
B196: TOTAL DAS DESPESAS FIXAS / OBRIGATÓRIAS | C196: =C133+C140+C147+C154+C161+C168+C175+C182+C189 -> 66383495.57 | D196: 73914710.8 | E196: 76113440 | F196: 77759948.17 | G196: 82173602.81 | H196: 85168659.35 | I196: 88421158.2
B197: Operação de Crédito Externo
B198: RESULTADOS | C198: REALIZADO | D198: =IF(#REF!>0,"REALIZADO","PROJETADO") ->  | E198: =IF(#REF!>0,"REALIZADO","PROJETADO") ->  | F198: =IF(#REF!>0,"REALIZADO","PROJETADO") ->  | G198: PROJETADO | I198: PROJETADO
B199: FISCAIS | C199: 1999 | D199: 2000 | E199: 2001 | F199: 2002 | G199: 2003 | I199: 2004
B201: 1. RECEITA CORRENTE LÍQUIDA | C201: =C8-#REF!-C11+C205-#REF! ->  | D201: =D8-#REF!-D11+D205-#REF! ->  | E201: =E8-#REF!-E11+E205-#REF! ->  | F201: =F8-#REF!-F11+F205-#REF! ->  | G201: =G8-#REF!-G11+G205-#REF! ->  | I201: =I8-#REF!-I11+I205-#REF! -> 
B202: 2. RECEITAS DE TRIBUTOS | C202: =C9 -> 25972856.52 | D202: =D9 -> 28922693.32 | E202: =E9 -> 30201000 | F202: =F9 -> 31361198.82 | G202: =G9 -> 33193719.13 | I202: =I9 -> 36367341.56
B203: 3. RECEITAS FINANCEIRAS | C203: =C16+#REF!+C17+#REF!+#REF!+#REF!+#REF! ->  | D203: =D16+#REF!+D17+#REF!+#REF!+#REF!+#REF! ->  | E203: =E16+#REF!+E17+#REF!+#REF!+#REF!+#REF! ->  | F203: =F16+#REF!+F17+#REF!+#REF!+#REF!+#REF! ->  | G203: =G16+#REF!+G17+#REF!+#REF!+#REF!+#REF! ->  | I203: =I16+#REF!+I17+#REF!+#REF!+#REF!+#REF! -> 
B204: 4. RENÚNCIA FISCAL | C204: =#REF! ->  | D204: =#REF! ->  | E204: =#REF! ->  | F204: =#REF! ->  | G204: =#REF! ->  | I204: =#REF! -> 
B205: 5. VALOR LÍQUIDO DO FUNDEF | C205: =#REF!-#REF! ->  | D205: =#REF!-#REF! ->  | E205: =#REF!-#REF! ->  | F205: =#REF!-#REF! ->  | G205: =#REF!-#REF! ->  | I205: =#REF!-#REF! -> 
... 17 more rows

Sheet RCL
A1: =Parâmetros!A7 -> Município de :
A2: =Parâmetros!A8 -> PLANO PLURIANUAL 2026 - 2029
A3: Tabela 02 - Estimativas para a Receita Corrente Líquida para fins dos Limites de Pessoal
A5: ESPECIFICAÇÃO | B5: =Parâmetros!C10 -> 2026 | C5: =B5+1 -> 2027 | D5: =C5+1 -> 2028 | E5: =D5+1 -> 2029
A6: I - RECEITAS CORRENTES (Exceto Intraorçamentárias) | B6: =Projeções!F8 -> 181660204.6 | C6: =Projeções!G8 -> 187299488.8 | D6: =Projeções!H8 -> 191303013.1 | E6: =Projeções!I8 -> 180664493.6
A7: II - DEDUÇÕES | B7: =SUM(B8:B13) -> 35695088.37 | C7: =SUM(C8:C13) -> 36047177.32 | D7: =SUM(D8:D13) -> 37457414.33 | E7: =SUM(E8:E13) -> 37940458.04
A8: Contribuições Previdenciárias do Regime Próprio | B8: =Projeções!F14 -> 5141655.054 | C8: =Projeções!G14 -> 5263249.188 | D8: =Projeções!H14 -> 5705652.138 | E8: =Projeções!I14 -> 5840068.542
A9: Compensação Financeira entre Regimes | B9: =Projeções!F80 -> 531390.8959 | C9: =Projeções!G80 -> 737936.4447 | D9: =Projeções!H80 -> 550066.1926 | E9: =Projeções!I80 -> 629510.1625
A10: Rendimentos de Aplicações de Rec.Previdenciários | B10: =Projeções!F28 -> 15801983.5 | C10: =Projeções!G28 -> 15345910.37 | D10: =Projeções!H28 -> 16571854.25 | E10: =Projeções!I28 -> 16511032.85
A11: Deduções da Receita Corrente | B11: =-(Projeções!F116+Projeções!F117+Projeções!F118) -> 14220058.93 | C11: =-(Projeções!G116+Projeções!G117+Projeções!G118) -> 14700081.31 | D11: =-(Projeções!H116+Projeções!H117+Projeções!H118) -> 14629841.75 | E11: =-(Projeções!I116+Projeções!I117+Projeções!I118) -> 14959846.48
A12: (-) Recursos de Emendas Parlamentares Individuais (código de natureza 1.7.1.0.00.00.00 com complemento de vínculo 3110) | C12: =B12*(1+Parâmetros!D11) -> 0 | D12: =C12*(1+Parâmetros!E11) -> 0 | E12: =D12*(1+Parâmetros!F11) -> 0
A13: (-) Recursos de Emendas Parlamentares de Bancada (código de natureza 1.7.1.0.00.00.00 com complemento de vínculo 3120) | C13: =B13*(1+Parâmetros!D11) -> 0 | D13: =C13*(1+Parâmetros!E11) -> 0 | E13: =D13*(1+Parâmetros!F11) -> 0
A14: IV - RECEITA CORRENTE LÍQUIDA PARA FINS DO LIMITE DAS DESPESAS COM PESSOAL (I-II) | B14: =B6-B7 -> 145965116.2 | C14: =C6-C7 -> 151252311.5 | D14: =D6-D7 -> 153845598.8 | E14: =E6-E7 -> 142724035.6

Sheet Pessoal
A1: =Parâmetros!A7 -> Município de :
A2: =Parâmetros!A8 -> PLANO PLURIANUAL 2026 - 2029
A3: Tabela 03 - Estimativa de Limites de Gastos com Pessoal do Poder Executivo e Legislativo
A5: PODER EXECUTIVO
B6: =RCL!B5 -> 2026 | C6: =RCL!C5 -> 2027 | D6: =RCL!D5 -> 2028 | E6: =RCL!E5 -> 2029
A7: Limite Máximo Legal - 54 % da RCL (alínea “b” do inciso III do artigo 20 da LRF) | B7: =RCL!B14*0.54 -> 78821162.77 | C7: =RCL!C14*0.54 -> 81676248.21 | D7: =RCL!D14*0.54 -> 83076623.33 | E7: =RCL!E14*0.54 -> 77070979.23
A8: Limite Prudencial - 51,30 % da RCL (parágrafo único do artigo 22 daLRF) | B8: =RCL!B14*0.513 -> 74880104.64 | C8: =RCL!C14*0.513 -> 77592435.8 | D8: =RCL!D14*0.513 -> 78922792.17 | E8: =RCL!E14*0.513 -> 73217430.27
A9: Limite de Alerta - 48,60 % da RCL (inciso II do § 1º do artigo 59 da LRF) | B9: =RCL!B14*0.486 -> 70939046.5 | C9: =RCL!C14*0.486 -> 73508623.39 | D9: =RCL!D14*0.486 -> 74768961 | E9: =RCL!E14*0.486 -> 69363881.31
A13: PODER LEGISLATIVO
B14: =RCL!B5 -> 2026 | C14: =RCL!C5 -> 2027 | D14: =RCL!D5 -> 2028 | E14: =RCL!E5 -> 2029
A15: Limite Máximo Legal - 6 % da RCL (alínea “b” do inciso III do artigo 20 da LRF) | B15: =RCL!B14*0.06 -> 8757906.975 | C15: =RCL!C14*0.06 -> 9075138.69 | D15: =RCL!D14*0.06 -> 9230735.926 | E15: =RCL!E14*0.06 -> 8563442.137
A16: Limite Prudencial - 5,70 % da RCL (parágrafo único do artigo 22 daLRF) | B16: =RCL!B14*0.057 -> 8320011.626 | C16: =RCL!C14*0.057 -> 8621381.756 | D16: =RCL!D14*0.057 -> 8769199.13 | E16: =RCL!E14*0.057 -> 8135270.03
A17: Limite de Alerta - 5,40 % da RCL (inciso II do § 1º do artigo 59 da LRF) | B17: =RCL!B14*0.054 -> 7882116.277 | C17: =RCL!C14*0.054 -> 8167624.821 | D17: =RCL!D14*0.054 -> 8307662.333 | E17: =RCL!E14*0.054 -> 7707097.923

Sheet Câmara
A1: =Parâmetros!A7 -> Município de :
A2: =Parâmetros!A8 -> PLANO PLURIANUAL 2026 - 2029
A3: Tabela 04 – Estimativa de Valores Máximos Disponíveis para as Diretrizes, Objetivos e Metas do Poder Legislativo
A5: RECEITA EFETIVAMENTE ARRECADADA ANO ANTERIOR | B5: BASE DE CÁLCULO PARA O ANO DA DESPESA
B6: 2026 /2025 | C6: 2027 / 2026 | D6: 2028 / 2027 | E6: 2029 / 2028
A8: Receita de Impostos, Taxas e Contribuição de Melhorias | B8: =Projeções!E9 -> 30201000 | C8: =Projeções!F9 -> 31361198.82 | D8: =Projeções!G9 -> 33193719.13 | E8: =Projeções!H9 -> 34697134.55
A9: Contribuições dos Servidores para o Regime Próprio de Previdência | B9: =Projeções!E14 -> 5330300 | C9: =Projeções!F14 -> 5141655.054 | D9: =Projeções!G14 -> 5263249.188 | E9: =Projeções!H14 -> 5705652.138
A10: Contribuições P/ Custeio da Iluminação Pública | B10: =Projeções!E18 -> 0 | C10: =Projeções!F18 -> 0 | D10: =Projeções!G18 -> 0 | E10: =Projeções!H18 -> 0
A11: Transferências Constitucionais e Legais | B11: =SUM(B12:B19) -> 73264550 | C11: =SUM(C12:C19) -> 67895761.53 | D11: =SUM(D12:D19) -> 71410361.83 | E11: =SUM(E12:E19) -> 72686597.79
A12: FPM (Art.159, CF/1998) | B12: =Projeções!E40 -> 38108000 | C12: =Projeções!F40 -> 35764596.09 | D12: =Projeções!G40 -> 37447148.97 | E12: =Projeções!H40 -> 38219779.14
A13: FPM Cotas Extras | B13: =Projeções!E41 -> 4632000 | C13: =Projeções!F41 -> 3681703.867 | D13: =Projeções!G41 -> 4101809.028 | E13: =Projeções!H41 -> 4262659.427
A14: ITR (Art.158, CF/1998) | B14: =Projeções!E42 -> 6250 | C14: =Projeções!F42 -> 14212.8052 | D14: =Projeções!G42 -> 14934.50052 | E14: =Projeções!H42 -> 12153.07496
A15: ICMS (Art.158, CF/1998) | B15: =Projeções!E55 -> 22353200 | C15: =Projeções!F55 -> 20006955.09 | D15: =Projeções!G55 -> 21221414.39 | E15: =Projeções!H55 -> 21617733.63
A16: IPVA (Art.158, CF/1998) | B16: =Projeções!E56 -> 7559800 | C16: =Projeções!F56 -> 7665049.502 | D16: =Projeções!G56 -> 7972646.084 | E16: =Projeções!H56 -> 7887148.499
A17: IPI-EX (Art.159, CF/1998) | B17: =Projeções!E57 -> 217700 | C17: =Projeções!F57 -> 214960.1108 | D17: =Projeções!G57 -> 233661.0971 | E17: =Projeções!H57 -> 226549.2107
A18: Cota Parte da CIDE / Combustíveis | B18: =Projeções!E58 -> 20000 | C18: =Projeções!F58 -> 18892.2666 | D18: =Projeções!G58 -> 23778.94604 | E18: =Projeções!H58 -> 21308.2123
A19: Transferência da Comp.Financeira das Perdas com Arrecadação de ICMS - LC nº 194/2022 | B19: =Projeções!E66 -> 367600 | C19: =Projeções!F66 -> 529391.7946 | D19: =Projeções!G66 -> 394968.8182 | E19: =Projeções!H66 -> 439266.6083
A20: Deduções das Receitas Correntes - Exceto para o Fundeb (F) | B20: =Projeções!E116+Projeções!E118 -> 0 | C20: =Projeções!F116+Projeções!F118 -> -1381025.848 | D20: =Projeções!G116+Projeções!G118 -> -1243126.541 | E20: =Projeções!H116+Projeções!H118 -> -949315.7179
A22: TOTAL DA RECEITA ARRECADADA NO ANO ANTERIOR - RAEA | B22: =B8+B9+B10+B11+B20 -> 108795850 | C22: =C8+C9+C10+C11+C20 -> 103017589.6 | D22: =D8+D9+D10+D11+D20 -> 108624203.6 | E22: =E8+E9+E10+E11+E20 -> 112140068.8
A24: Limite Percentual Estabelecido pelo Art. 29-A da Constituição da República | B24: 0.07
A25: Limite da despesa para o ano
A26: =CONCATENATE("Legislativo Total ",TEXT(B24,"0,0%")," da RAEA") -> Legislativo Total 7,0% da RAEA | B26: =+B22*$B$24 -> 7615709.5 | C26: =+C22*$B$24 -> 7211231.269 | D26: =+D22*$B$24 -> 7603694.252 | E26: =+E22*$B$24 -> 7849804.813
A27: Legislativo: Folha de Pagamento = 70% do Limite Total | B27: =+B26*70% -> 5330996.65 | C27: =+C26*70% -> 5047861.888 | D27: =+D26*70% -> 5322585.977 | E27: =+E26*70% -> 5494863.369
A29: Estimativas de Gastos do Poder Legislativo | B29: =Parâmetros!C10 -> 2026 | C29: =B29+1 -> 2027 | D29: =C29+1 -> 2028 | E29: =D29+1 -> 2029
A31: =Projeções!B133 -> Pessoal e Encargos Sociais | B31: =Projeções!F134 -> 510263.8343 | C31: =Projeções!G134 -> 530335.3936 | D31: =Projeções!H134 -> 564144.5007 | E31: =Projeções!I134 -> 563680.9983
A32: =Projeções!B140 -> Juros e Encargos da Dívida | B32: =Projeções!F141 -> 0 | C32: =Projeções!G141 -> 0 | D32: =Projeções!H141 -> 0 | E32: =Projeções!I141 -> 0
A33: =Projeções!B147 -> Outros Benefícios Assistênciais do Servidor e do Militar | B33: =Projeções!F148 -> 0 | C33: =Projeções!G148 -> 0 | D33: =Projeções!H148 -> 0 | E33: =Projeções!I148 -> 0
A34: =Projeções!B154 -> Auxílio - Alimentação | B34: =Projeções!F155 -> 10314.96162 | C34: =Projeções!G155 -> 11568.65896 | D34: =Projeções!H155 -> 15188.12108 | E34: =Projeções!I155 -> 12826.82261
A35: =Projeções!B161 -> Obrigações Tributárias e Contributivas | B35: =Projeções!F162 -> 783.75 | C35: =Projeções!G162 -> 1051.7 | D35: =Projeções!H162 -> 1327.449245 | E35: =Projeções!I162 -> 1094.363139
A36: =Projeções!B168 -> Sentenças Judiciais (Exceto Precatórios de Pessoal) | B36: =Projeções!F169 -> 0 | C36: =Projeções!G169 -> 0 | D36: =Projeções!H169 -> 0 | E36: =Projeções!I169 -> 0
A37: =Projeções!B175 -> Indenizações e Restituições | B37: =Projeções!F176+Projeções!F183 -> 0 | C37: =Projeções!G176+Projeções!G183 -> 0 | D37: =Projeções!H176+Projeções!H183 -> 0 | E37: =Projeções!I176+Projeções!I183 -> 0
A38: =Projeções!B189 -> Amortização da Dívida | B38: =Projeções!F190 -> 0 | C38: =Projeções!G190 -> 0 | D38: =Projeções!H190 -> 0 | E38: =Projeções!I190 -> 0
A39: Subtotal - Gastos Fixos / Obrigatórios | B39: =B31+B32+B33+B34+B35+B36+B37+B38 -> 521362.5459 | C39: =C31+C32+C33+C34+C35+C36+C37+C38 -> 542955.7525 | D39: =D31+D32+D33+D34+D35+D36+D37+D38 -> 580660.0711 | E39: =E31+E32+E33+E34+E35+E36+E37+E38 -> 577602.1841
A40: Valor passível de alocação para demais diretrizes, objetivos e metas do Legislativo | B40: =B26-B39 -> 7094346.954 | C40: =C26-C39 -> 6668275.517 | D40: =D26-D39 -> 7023034.181 | E40: =E26-E39 -> 7272202.629

Sheet Educação
A1: =Parâmetros!A7 -> Município de :
A2: =Parâmetros!A8 -> PLANO PLURIANUAL 2026 - 2029
A3: Tabela 05 – Estimativa de Valores Disponíveis para as Diretrizes, Objetivos e Metas a serem Financiados com Recursos vinculados à Educação
A5: DISCRIMINAÇÃO
A6: RECEITA | B6: =Parâmetros!C10 -> 2026 | C6: =B6+1 -> 2027 | D6: =C6+1 -> 2028 | E6: =D6+1 -> 2029
A7: IMPOSTOS PRÓPRIOS | B7: =Projeções!F9 -> 31361198.82 | C7: =Projeções!G9 -> 33193719.13 | D7: =Projeções!H9 -> 34697134.55 | E7: =Projeções!I9 -> 36367341.56
A8: TRANSFERÊNCIAS CONSTITUCIONAIS DA UNIÃO | B8: =Projeções!F40+Projeções!F41+Projeções!F42 -> 39460512.76 | C8: =Projeções!G40+Projeções!G41+Projeções!G42 -> 41563892.49 | D8: =Projeções!H40+Projeções!H41+Projeções!H42 -> 42494591.64 | E8: =Projeções!I40+Projeções!I41+Projeções!I42 -> 42408188.93
A9: TRANSFERÊNCIAS CONSTITUCIONAIS DO ESTADO | B9: =Projeções!F55+Projeções!F56+Projeções!F57+Projeções!F66 -> 28416356.5 | C9: =Projeções!G55+Projeções!G56+Projeções!G57+Projeções!G66 -> 29822690.39 | D9: =Projeções!H55+Projeções!H56+Projeções!H57+Projeções!H66 -> 30170697.94 | E9: =Projeções!I55+Projeções!I56+Projeções!I57+Projeções!I66 -> 30059313.24
A10: (-) Dedução das Receitas de Impostos | B10: =Projeções!F116 -> -1076599.792 | C10: =Projeções!G116 -> -970674.5634 | D10: =Projeções!H116 -> -749658.2305 | E10: =Projeções!I116 -> -1024835.257
A12: A APLICAR PARA FINS DO ART. 212 DA CONSTITUIÇÃO - (25%) | B12: =(SUM(B7:B11))*0.25 -> 24540367.07 | C12: =(SUM(C7:C11))*0.25 -> 25902406.86 | D12: =(SUM(D7:D11))*0.25 -> 26653191.47 | E12: =(SUM(E7:E11))*0.25 -> 26952502.12
A14: Rendimentos de Aplicações Financeiras (MDE, Fundeb e demais vinculações) | B14: =Projeções!F22 -> 458538.4412 | C14: =Projeções!G22 -> 484149.1967 | D14: =Projeções!H22 -> 461935.3915 | E14: =Projeções!I22 -> 485999.5681
A15: Transferências de Recursos do FNDE - Correntes e de Capital | B15: =Projeções!F45+Projeções!F88 -> 2764040.62 | C15: =Projeções!G45+Projeções!G88 -> 2668039.265 | D15: =Projeções!H45+Projeções!H88 -> 2627330.76 | E15: =Projeções!I45+Projeções!I88 -> 2766075.433
A16: Transf. De Convenios Federais - Correntes e de Capital | B16: =Projeções!F50+Projeções!F91 -> 0 | C16: =Projeções!G50+Projeções!G91 -> 0 | D16: =Projeções!H50+Projeções!H91 -> 0 | E16: =Projeções!I50+Projeções!I91 -> 0
A17: Transf. De Convenios Estaduais - Correntes e de Capital | B17: =Projeções!F62+Projeções!F97 -> 84658.66667 | C17: =Projeções!G62+Projeções!G97 -> 73766.75556 | D17: =Projeções!H62+Projeções!H97 -> 75475.14074 | E17: =Projeções!I62+Projeções!I97 -> 77966.85432
A18: Demais Transferências para Programas de Educação - Correntes e de Capital | B18: =Projeções!F68 -> 0 | C18: =Projeções!G68 -> 0 | D18: =Projeções!H68 -> 0 | E18: =Projeções!I68 -> 0
A19: (+) Transferências do FUNDEB + Complementações do Fundeb | B19: =Projeções!F46+Projeções!F47+Projeções!F72 -> 26262028.14 | C19: =Projeções!G46+Projeções!G47+Projeções!G72 -> 27195486.55 | D19: =Projeções!H46+Projeções!H47+Projeções!H72 -> 26962091.71 | E19: =Projeções!I46+Projeções!I47+Projeções!I72 -> 27479644.15
A20: (-) Deduções da Receita para o FUNDEB | B20: =Projeções!F117 -> -12839033.08 | C20: =Projeções!G117 -> -13456954.77 | D20: =Projeções!H117 -> -13680526.03 | E20: =Projeções!I117 -> -13666329.94
A21: Total de Recursos Estimados para Aplicação em Educação | B21: =B12+B14+B15+B16+B17+B18+B19+B20 -> 41270599.86 | C21: =C12+C14+C15+C16+C17+C18+C19+C20 -> 42866893.86 | D21: =D12+D14+D15+D16+D17+D18+D19+D20 -> 43099498.44 | E21: =E12+E14+E15+E16+E17+E18+E19+E20 -> 44095858.19
A23: Estimativas de Gastos Fixos / Obrigatórios | B23: =B6 -> 2026 | C23: =B23+1 -> 2027 | D23: =C23+1 -> 2028 | E23: =D23+1 -> 2029
A24: =Projeções!B136 -> Pessoal e Encargos Sociais - Educação | B24: =Projeções!F136 -> 37800238.92 | C24: =Projeções!G136 -> 39610383.17 | D24: =Projeções!H136 -> 40984696.48 | E24: =Projeções!I136 -> 42918243.12
A25: =Projeções!B143 -> Juros e Encargos da Dívida - Educação | B25: =Projeções!F143 -> 0 | C25: =Projeções!G143 -> 0 | D25: =Projeções!H143 -> 0 | E25: =Projeções!I143 -> 0
A26: =Projeções!B150 -> Outros Benef.Assistênciais - Educação | B26: =Projeções!F150 -> 0 | C26: =Projeções!G150 -> 0 | D26: =Projeções!H150 -> 0 | E26: =Projeções!I150 -> 0
A27: =Projeções!B157 -> Auxílio - Alimentação - Educação | B27: =Projeções!F157 -> 3023226.588 | C27: =Projeções!G157 -> 3094647.174 | D27: =Projeções!H157 -> 3138391.109 | E27: =Projeções!I157 -> 3202667.645
A28: =Projeções!B164 -> Obrigações Tributárias e Contributivas - Educação | B28: =Projeções!F164 -> 1847.856083 | C28: =Projeções!G164 -> 2091.858109 | D28: =Projeções!H164 -> 1363.535082 | E28: =Projeções!I164 -> 1834.924249
A29: =Projeções!B171 -> Sentenças Judiciais - Educação | B29: =Projeções!F171 -> 0 | C29: =Projeções!G171 -> 0 | D29: =Projeções!H171 -> 0 | E29: =Projeções!I171 -> 0
A30: =Projeções!B178 -> Indenizações e Restituições - Educação | B30: =Projeções!F178+Projeções!F185 -> 0 | C30: =Projeções!G178+Projeções!G185 -> 0 | D30: =Projeções!H178+Projeções!H185 -> 0 | E30: =Projeções!I178+Projeções!I185 -> 0
A31: =Projeções!B192 -> Amortização da Dívida - Educação | B31: =Projeções!F192 -> 0 | C31: =Projeções!G192 -> 0 | D31: =Projeções!H192 -> 0 | E31: =Projeções!I192 -> 0
A32: Subtotal - Gastos Fixos / Obrigatórios | B32: =SUM(B24:B31) -> 40825313.36 | C32: =SUM(C24:C31) -> 42707122.21 | D32: =SUM(D24:D31) -> 44124451.12 | E32: =SUM(E24:E31) -> 46122745.69
A33: Valor passível de alocação para demais diretrizes, objetivos e metas da Educação | B33: =B21-B32 -> 445286.4945 | C33: =C21-C32 -> 159771.6558 | D33: =D21-D32 -> -1024952.678 | E33: =E21-E32 -> -2026887.503

Sheet Saúde
A1: =Parâmetros!A7 -> Município de :
A2: =Parâmetros!A8 -> PLANO PLURIANUAL 2026 - 2029
A3: Tabela 06 – Estimativa de Valores Disponíveis para as Diretrizes, Objetivos e Metas a serem Financiados com Recursos vinculados à Saúde
A5: DISCRIMINAÇÃO
A6: RECEITA | B6: =Parâmetros!C10 -> 2026 | C6: =B6+1 -> 2027 | D6: =C6+1 -> 2028 | E6: =D6+1 -> 2029
A7: IMPOSTOS PRÓPRIOS | B7: =Educação!B7 -> 31361198.82 | C7: =Educação!C7 -> 33193719.13 | D7: =Educação!D7 -> 34697134.55 | E7: =Educação!E7 -> 36367341.56
A8: TRANSFERÊNCIAS CONSTITUCIONAIS DA UNIÃO | B8: =Educação!B8 -> 39460512.76 | C8: =Educação!C8 -> 41563892.49 | D8: =Educação!D8 -> 42494591.64 | E8: =Educação!E8 -> 42408188.93
A9: TRANSFERÊNCIAS CONSTITUCIONAIS DO ESTADO | B9: =Educação!B9 -> 28416356.5 | C9: =Educação!C9 -> 29822690.39 | D9: =Educação!D9 -> 30170697.94 | E9: =Educação!E9 -> 30059313.24
A10: =Educação!A10 -> (-) Dedução das Receitas de Impostos | B10: =Educação!B10 -> -1076599.792 | C10: =Educação!C10 -> -970674.5634 | D10: =Educação!D10 -> -749658.2305 | E10: =Educação!E10 -> -1024835.257
A12: VALOR MÍNIMO A APLICAR PARA FINS DO ART. 198 DA CONSTITUIÇÃO (15 %) | B12: =(SUM(B7:B11))*0.15 -> 14724220.24 | C12: =(SUM(C7:C11))*0.15 -> 15541444.12 | D12: =(SUM(D7:D11))*0.15 -> 15991914.88 | E12: =(SUM(E7:E11))*0.15 -> 16171501.27
A14: Rendimentos de Aplicações Financeiras (Recursos ASPS + Fonte Federal e Estadual) | B14: =Projeções!F23 -> 674422.6086 | C14: =Projeções!G23 -> 742817.2782 | D14: =Projeções!H23 -> 720663.2248 | E14: =Projeções!I23 -> 739714.4766
A15: Transferências de Recursos do SUS - Fundo Nacional de Saúde - Correntes e de Capital | B15: =Projeções!F44+Projeções!F87 -> 3847698.052 | C15: =Projeções!G44+Projeções!G87 -> 3939343.605 | D15: =Projeções!H44+Projeções!H87 -> 4250873.331 | E15: =Projeções!I44+Projeções!I87 -> 4099415.258
A16: Transferências de Recursos do SUS - Fundo Estadual de Saúde - Correntes e de Capital | B16: =Projeções!F60+Projeções!F95 -> 475726.3046 | C16: =Projeções!G60+Projeções!G95 -> 613849.9148 | D16: =Projeções!H60+Projeções!H95 -> 557698.1368 | E16: =Projeções!I60+Projeções!I95 -> 559036.2441
A17: Transf. De Convenios Federais - Correntes e de Capital | B17: =Projeções!F61+Projeções!F90 -> 421716.33 | C17: =Projeções!G61+Projeções!G90 -> 346511.3633 | D17: =Projeções!H61+Projeções!H90 -> 256075.8978 | E17: =Projeções!I61+Projeções!I90 -> 341434.5304
A18: Transf. De Convenios Estaduais - Correntes e de Capital | B18: =Projeções!F61+Projeções!F96 -> 342097.6633 | C18: =Projeções!G61+Projeções!G96 -> 240353.1411 | D18: =Projeções!H61+Projeções!H96 -> 194150.2681 | E18: =Projeções!I61+Projeções!I96 -> 258867.0242
A20: Total de Recursos Estimados para Aplicação em Saúde | B20: =SUM(B12:B19) -> 20485881.2 | C20: =SUM(C12:C19) -> 21424319.42 | D20: =SUM(D12:D19) -> 21971375.74 | E20: =SUM(E12:E19) -> 22169968.81
A22: Estimativas de Gastos Fixos / Obrigatórios | B22: =B6 -> 2026 | C22: =B22+1 -> 2027 | D22: =C22+1 -> 2028 | E22: =D22+1 -> 2029
A24: =Projeções!B135 -> Pessoal e Encargos Sociais - Saúde | B24: =Projeções!F135 -> 9911709.109 | C24: =Projeções!G135 -> 10523115.78 | D24: =Projeções!H135 -> 10963457.7 | E24: =Projeções!I135 -> 11381861.57
A25: =Projeções!B142 -> Juros e Encargos da Dívida - Saúde | B25: =Projeções!F142 -> 0 | C25: =Projeções!G142 -> 0 | D25: =Projeções!H142 -> 0 | E25: =Projeções!I142 -> 0
A26: =Projeções!B149 -> Outros Benef.Assistênciais - Saúde | B26: =Projeções!F149 -> 0 | C26: =Projeções!G149 -> 0 | D26: =Projeções!H149 -> 0 | E26: =Projeções!I149 -> 0
A27: =Projeções!B156 -> Auxílio - Alimentação - Saúde | B27: =Projeções!F156 -> 746759.9678 | C27: =Projeções!G156 -> 774562.2171 | D27: =Projeções!H156 -> 782643.6082 | E27: =Projeções!I156 -> 797172.1644
A28: =Projeções!B163 -> Obrigações Tributárias e Contributivas - Saúde | B28: =Projeções!F163 -> 62.7627 | C28: =Projeções!G163 -> 21.757736 | D28: =Projeções!H163 -> 29.2525229 | E28: =Projeções!I163 -> 39.36544378
A29: =Projeções!B170 -> Sentenças Judiciais - Saúde | B29: =Projeções!F170 -> 492494.0511 | C29: =Projeções!G170 -> 468574.954 | D29: =Projeções!H170 -> 450230.7627 | E29: =Projeções!I170 -> 488309.7197
A30: =Projeções!B177 -> Indenizações e Restituições - Saúde | B30: =Projeções!F177+Projeções!F184 -> 72740.23808 | C30: =Projeções!G177+Projeções!G184 -> 77685.42014 | D30: =Projeções!H177+Projeções!H184 -> 84609.56431 | E30: =Projeções!I177+Projeções!I184 -> 81322.18699
A31: =Projeções!B191 -> Amortização da Dívida - Saúde | B31: =Projeções!F191 -> 0 | C31: =Projeções!G191 -> 0 | D31: =Projeções!H191 -> 0 | E31: =Projeções!I191 -> 0
A32: Subtotal - Gastos Fixos / Obrigatórios | B32: =SUM(B24:B31) -> 11223766.13 | C32: =SUM(C24:C31) -> 11843960.13 | D32: =SUM(D24:D31) -> 12280970.89 | E32: =SUM(E24:E31) -> 12748705
A33: Valor passível de alocação para demais diretrizes, objetivos e metas da Saúde | B33: =B20-B32 -> 9262115.074 | C33: =C20-C32 -> 9580359.286 | D33: =D20-D32 -> 9690404.855 | E33: =E20-E32 -> 9421263.804

Sheet Ass.Social
A1: =Parâmetros!A7 -> Município de :
A2: =Parâmetros!A8 -> PLANO PLURIANUAL 2026 - 2029
A3: Tabela 07 – Estimativa de Valores Disponíveis para as Diretrizes, Objetivos e Metas a serem Financiados com Recursos vinculados à Assistência Social
A5: DISCRIMINAÇÃO
A6: RECEITA | B6: =Parâmetros!C10 -> 2026 | C6: =B6+1 -> 2027 | D6: =C6+1 -> 2028 | E6: =D6+1 -> 2029
A7: Rendimentos de Aplicações Financeiras (Recursos Próprios + Fonte Federal e Estadual) | B7: =Projeções!F24 -> 44204.30813 | C7: =Projeções!G24 -> 47676.25135 | D7: =Projeções!H24 -> 36714.48164 | E7: =Projeções!I24 -> 44493.88423
A8: Transferências de Recursos do SUAS - Fundo Nacional de Ass.Social | B8: =Projeções!F48+Projeções!F89 -> 423480.3401 | C8: =Projeções!G48+Projeções!G89 -> 277891.4747 | D8: =Projeções!H48+Projeções!H89 -> 284643.1897 | E8: =Projeções!I48+Projeções!I89 -> 336190.7515
A9: Transferências de Recursos do SUAS - Fundo Estadual de Ass.Social | B9: =Projeções!F65 -> 0 | C9: =Projeções!G65 -> 0 | D9: =Projeções!H65 -> 0 | E9: =Projeções!I65 -> 0
A10: Transf. De Convenios Federais - Correntes e de Capital | B10: =Projeções!F51+Projeções!F92 -> 0 | C10: =Projeções!G51+Projeções!G92 -> 0 | D10: =Projeções!H51+Projeções!H92 -> 0 | E10: =Projeções!I51+Projeções!I92 -> 0
A11: Transf. De Convenios Estaduais - Correntes e de Capital | B11: =Projeções!F63+Projeções!F98 -> 4550.96 | C11: =Projeções!G63+Projeções!G98 -> 6067.946667 | D11: =Projeções!H63+Projeções!H98 -> 3539.635556 | E11: =Projeções!I63+Projeções!I98 -> 4719.514074
A12: Previsão de Aportes de Recursos Próprios para o FMAS | B12: =Projeções!F124 -> 1004689.184 | C12: =Projeções!G124 -> 1095154.446 | D12: =Projeções!H124 -> 1107465.881 | E12: =Projeções!I124 -> 1109729.091
A13: Total de Recursos Estimados para Aplicação em Assistência Social | B13: =SUM(B7:B12) -> 1476924.792 | C13: =SUM(C7:C12) -> 1426790.119 | D13: =SUM(D7:D12) -> 1432363.187 | E13: =SUM(E7:E12) -> 1495133.241
A15: Estimativas de Gastos Fixos / Obrigatórios | B15: =B6 -> 2026 | C15: =B15+1 -> 2027 | D15: =C15+1 -> 2028 | E15: =D15+1 -> 2029
A17: =Projeções!B137 -> Pessoal e Encargos Sociais - Assist. Social | B17: =Projeções!F137 -> 545478.6378 | C17: =Projeções!G137 -> 626922.1826 | D17: =Projeções!H137 -> 724447.3546 | E17: =Projeções!I137 -> 687606.5044
A18: =Projeções!B144 -> Juros e Encargos da Dívida - Assist. Social | B18: =Projeções!F144 -> 0 | C18: =Projeções!G144 -> 0 | D18: =Projeções!H144 -> 0 | E18: =Projeções!I144 -> 0
A19: =Projeções!B151 -> Outros Benef.Assistênciais - Assist. Social | B19: =Projeções!F151 -> 0 | C19: =Projeções!G151 -> 0 | D19: =Projeções!H151 -> 0 | E19: =Projeções!I151 -> 0
A20: =Projeções!B158 -> Auxílio - Alimentação - Assist. Social | B20: =Projeções!F158 -> 46560.52188 | C20: =Projeções!G158 -> 52475.93239 | D20: =Projeções!H158 -> 61272.31682 | E20: =Projeções!I158 -> 55466.8348
A21: =Projeções!B165 -> Obrigações Tributárias e Contributivas - Assist. Social | B21: =Projeções!F165 -> 111.4666667 | C21: =Projeções!G165 -> 38.64177778 | D21: =Projeções!H165 -> 51.95253262 | E21: =Projeções!I165 -> 69.91309807
A22: =Projeções!B172 -> Sentenças Judiciais - Assist. Social | B22: =Projeções!F172 -> 0 | C22: =Projeções!G172 -> 0 | D22: =Projeções!H172 -> 0 | E22: =Projeções!I172 -> 0
A23: =Projeções!B179 -> Indenizações e Restituições - Assist. Social | B23: =Projeções!F179+Projeções!F186 -> 0 | C23: =Projeções!G179+Projeções!G186 -> 0 | D23: =Projeções!H179+Projeções!H186 -> 0 | E23: =Projeções!I179+Projeções!I186 -> 0
A24: =Projeções!B193 -> Amortização da Dívida - Assist. Social | B24: =Projeções!F193 -> 0 | C24: =Projeções!G193 -> 0 | D24: =Projeções!H193 -> 0 | E24: =Projeções!I193 -> 0
A25: Subtotal - Gastos Fixos / Obrigatórios | B25: =SUM(B17:B24) -> 592150.6263 | C25: =SUM(C17:C24) -> 679436.7568 | D25: =SUM(D17:D24) -> 785771.624 | E25: =SUM(E17:E24) -> 743143.2523
A26: Valor passível de alocação para demais diretrizes, objetivos e metas da Assist. Social | B26: =B13-B25 -> 884774.1661 | C26: =C13-C25 -> 747353.3622 | D26: =D13-D25 -> 646591.5635 | E26: =E13-E25 -> 751989.9884

Sheet RPPS
A1: =Parâmetros!A7 -> Município de :
A2: =Parâmetros!A8 -> PLANO PLURIANUAL 2026 - 2029
A3: Tabela 08 – Estimativa de Valores Disponíveis para as Diretrizes, Objetivos e Metas a serem Financiados com Recursos do RPPS
A5: DISCRIMINAÇÃO
A6: RECEITA | B6: =Parâmetros!C10 -> 2026 | C6: =B6+1 -> 2027 | D6: =C6+1 -> 2028 | E6: =D6+1 -> 2029
A7: Contribuições dos Servidores para o RPPS | B7: =Projeções!F14 -> 5141655.054 | C7: =Projeções!G14 -> 5263249.188 | D7: =Projeções!H14 -> 5705652.138 | E7: =Projeções!I14 -> 5840068.542
A8: Contribuições Patronais | B8: =Projeções!F109 -> 10829833.74 | C8: =Projeções!G109 -> 11339346.37 | D8: =Projeções!H109 -> 11693016.23 | E8: =Projeções!I109 -> 11716319.93
A9: Rendimentos das Aplicações Financeiras | B9: =Projeções!F28 -> 15801983.5 | C9: =Projeções!G28 -> 15345910.37 | D9: =Projeções!H28 -> 16571854.25 | E9: =Projeções!I28 -> 16511032.85
A10: Dedução dos Rendimentos das Aplicações Financeiras (digitar com sinal negativo) | B10: =Projeções!F119 -> -1756624.609 | C10: =Projeções!G119 -> -1815347.861 | D10: =Projeções!H119 -> -1460790.181 | E10: =Projeções!I119 -> -1741335.877
A11: Receita de Compensação Financeira | B11: =Projeções!F80 -> 531390.8959 | C11: =Projeções!G80 -> 737936.4447 | D11: =Projeções!H80 -> 550066.1926 | E11: =Projeções!I80 -> 629510.1625
A12: Receitas de Capital Arrecadadas pelo RPPS | B12: =Projeções!F106 -> 0 | C12: =Projeções!G106 -> 0 | D12: =Projeções!H106 -> 0 | E12: =Projeções!I106 -> 0
A13: Total de Recursos Estimados vinculados ao RPPS | B13: =SUM(B7:B12) -> 30548238.58 | C13: =SUM(C7:C12) -> 30871094.52 | D13: =SUM(D7:D12) -> 33059798.63 | E13: =SUM(E7:E12) -> 32955595.61
A15: Estimativas de Gastos Fixos / Obrigatórios | B15: =B6 -> 2026 | C15: =B15+1 -> 2027 | D15: =C15+1 -> 2028 | E15: =D15+1 -> 2029
A17: =Projeções!B138 -> Pessoal e Encargos Sociais - Do RPPS | B17: =Projeções!F138 -> 7852961.705 | C17: =Projeções!G138 -> 8427628.286 | D17: =Projeções!H138 -> 8862262.122 | E17: =Projeções!I138 -> 9114271.179
A18: =Projeções!B145 -> Juros e Encargos da Dívida - Do RPPS | B18: =Projeções!F145 -> 0 | C18: =Projeções!G145 -> 0 | D18: =Projeções!H145 -> 0 | E18: =Projeções!I145 -> 0
A19: =Projeções!B152 -> Outros Benef.Assistênciais - Do RPPS | B19: =Projeções!F152 -> 0 | C19: =Projeções!G152 -> 0 | D19: =Projeções!H152 -> 0 | E19: =Projeções!I152 -> 0
A20: =Projeções!B159 -> Auxílio - Alimentação - Do Rpps | B20: =Projeções!F159 -> 0 | C20: =Projeções!G159 -> 0 | D20: =Projeções!H159 -> 0 | E20: =Projeções!I159 -> 0
A21: =Projeções!B166 -> Obrigações Tributárias e Contributivas - do RPPS | B21: =Projeções!F166 -> 0 | C21: =Projeções!G166 -> 0 | D21: =Projeções!H166 -> 0 | E21: =Projeções!I166 -> 0
A22: =Projeções!B173 -> Sentenças Judiciais - Do RPPS | B22: =Projeções!F173 -> 0 | C22: =Projeções!G173 -> 0 | D22: =Projeções!H173 -> 0 | E22: =Projeções!I173 -> 0
A23: =Projeções!B180 -> Indenizações e Restituições - Do RPPS | B23: =Projeções!F180+Projeções!F187 -> 121.9166667 | C23: =Projeções!G180+Projeções!G187 -> 163.5977778 | D23: =Projeções!H180+Projeções!H187 -> 98.81654922 | E23: =Projeções!I180+Projeções!I187 -> 132.9785238
A24: =Projeções!B194 -> Amortização da Dívida - Do RPPS | B24: =Projeções!F194 -> 0 | C24: =Projeções!G194 -> 0 | D24: =Projeções!H194 -> 0 | E24: =Projeções!I194 -> 0
A25: Subtotal - Gastos Fixos / Obrigatórios | B25: =SUM(B17:B24) -> 7853083.622 | C25: =SUM(C17:C24) -> 8427791.884 | D25: =SUM(D17:D24) -> 8862360.939 | E25: =SUM(E17:E24) -> 9114404.157
A26: Valor passível de alocação para demais diretrizes, objetivos e metas do RPPS ou para a Reserva de Contingência. | B26: =B13-B25 -> 22695154.96 | C26: =C13-C25 -> 22443302.63 | D26: =D13-D25 -> 24197437.69 | E26: =E13-E25 -> 23841191.45

Sheet Consolidação
A1: =Parâmetros!A7 -> Município de :
A2: =Parâmetros!A8 -> PLANO PLURIANUAL 2026 - 2029
A3: Tabela 09 - Avaliação Global de Valores Disponíveis para as Diretrizes, Objetivos e Metas do PPA
A5: DISCRIMINAÇÃO
A6: RECEITA | B6: =Parâmetros!C10 -> 2026 | C6: =B6+1 -> 2027 | D6: =C6+1 -> 2028 | E6: =D6+1 -> 2029
A7: Receitas totais estimadas | B7: =Projeções!F121 -> 184088405.7 | C7: =Projeções!G121 -> 184761773.5 | D7: =Projeções!H121 -> 189756897.9 | E7: =Projeções!I121 -> 178379347.2
A8: (-) Valores vinculados às Diretrizes, Objetivos e Metas da EDUCAÇÃO | B8: =ROUNDDOWN(Educação!B21,-5) -> 41200000 | C8: =ROUNDDOWN(Educação!C21,-5) -> 42800000 | D8: =ROUNDDOWN(Educação!D21,-5) -> 43000000 | E8: =ROUNDDOWN(Educação!E21,-5) -> 44000000
A9: (-) Valores vinculados às Diretrizes, Objetivos e Metas da SAÚDE | B9: =ROUNDDOWN(Saúde!B20,-5) -> 20400000 | C9: =ROUNDDOWN(Saúde!C20,-5) -> 21400000 | D9: =ROUNDDOWN(Saúde!D20,-5) -> 21900000 | E9: =ROUNDDOWN(Saúde!E20,-5) -> 22100000
A10: (-) Valores vinculados às Diretrizes, Objetivos e Metas da ASSISTÊNCIA SOCIAL | B10: =ROUNDDOWN(Ass.Social!B13,-3) -> 1476000 | C10: =ROUNDDOWN(Ass.Social!C13,-3) -> 1426000 | D10: =ROUNDDOWN(Ass.Social!D13,-3) -> 1432000 | E10: =ROUNDDOWN(Ass.Social!E13,-3) -> 1495000
A11: (-) Valores vinculados às Diretrizes, Objetivos e Metas do RPPS | B11: =ROUNDDOWN(RPPS!B13,-5) -> 30500000 | C11: =ROUNDDOWN(RPPS!C13,-5) -> 30800000 | D11: =ROUNDDOWN(RPPS!D13,-5) -> 33000000 | E11: =ROUNDDOWN(RPPS!E13,-5) -> 32900000
A12: (-) Valores máximo a ser destinado para as Diretrizes, Objetivos e Metas do Poder Legislativo | B12: 1100000 | C12: 1150000 | D12: 1200000 | E12: 1250000
A13: (-) Valores vinculados às Diretrizes, Objetivos e Metas da Autarquia | B13: =ROUNDDOWN(Projeções!F27+Projeções!F37+Projeções!F78+Projeções!F111,-5) -> 14600000 | C13: =ROUNDDOWN(Projeções!G27+Projeções!G37+Projeções!G78+Projeções!G111,-5) -> 15100000 | D13: =ROUNDDOWN(Projeções!H27+Projeções!H37+Projeções!H78+Projeções!H111,-5) -> 15500000 | E13: =ROUNDDOWN(Projeções!I27+Projeções!I37+Projeções!I78+Projeções!I111,-5) -> 15700000
A15: RECURSOS DISPONÍVEIS PARA AS DEMAIS ÁREAS | B15: =B7-B8-B9-B10-B11-B12 -> 89412405.71 | C15: =C7-C8-C9-C10-C11-C12 -> 87185773.51 | D15: =D7-D8-D9-D10-D11-D12 -> 89224897.91 | E15: =E7-E8-E9-E10-E11-E12 -> 76634347.25
A17: Estimativas de Gastos Fixos / Obrigatórios - Demais Áreas | B17: =B6 -> 2026 | C17: =B17+1 -> 2027 | D17: =C17+1 -> 2028 | E17: =D17+1 -> 2029
A19: =Projeções!B139 -> Pessoal e Encargos Sociais - Demais Áreas | B19: =Projeções!F139 -> 13276404.12 | C19: =Projeções!G139 -> 14252964.69 | D19: =Projeções!H139 -> 14693764.98 | E19: =Projeções!I139 -> 15305864.65
A20: =Projeções!B146 -> Juros e Encargos da Dívida - Demais Áreas | B20: =Projeções!F146 -> 0 | C20: =Projeções!G146 -> 0 | D20: =Projeções!H146 -> 0 | E20: =Projeções!I146 -> 0
A21: =Projeções!B153 -> Outros Benef.Assistênciais - Demais Áreas | B21: =Projeções!F153 -> 0 | C21: =Projeções!G153 -> 0 | D21: =Projeções!H153 -> 0 | E21: =Projeções!I153 -> 0
A22: =Projeções!B160 -> Auxílio - Alimentação - Demais Áreas | B22: =Projeções!F160 -> 905565.0509 | C22: =Projeções!G160 -> 942108.0936 | D22: =Projeções!H160 -> 963360.0553 | E22: =Projeções!I160 -> 972617.4871
A23: =Projeções!B167 -> Obrigações Tributárias e Contributivas -Demais Áreas | B23: =Projeções!F167 -> 1989726.583 | C23: =Projeções!G167 -> 2127637.139 | D23: =Projeções!H167 -> 2265592.654 | E23: =Projeções!I167 -> 2208502.906
A24: =Projeções!B174 -> Sentenças Judiciais - Demais Áreas | B24: =Projeções!F174 -> 204032.4079 | C24: =Projeções!G174 -> 269507.4262 | D24: =Projeções!H174 -> 353901.0366 | E24: =Projeções!I174 -> 286294.5412
A25: =Projeções!B181 -> Indenizações e Restituições - Demais Áreas | B25: =Projeções!F181+Projeções!F188 -> 143543.7184 | C25: =Projeções!G181+Projeções!G188 -> 192618.7288 | D25: =Projeções!H181+Projeções!H188 -> 120325.973 | E25: =Projeções!I181+Projeções!I188 -> 157944.9934
A26: =Projeções!B195 -> Amortização da Dívida - Demais Áreas | B26: =Projeções!F195 -> 225000 | C26: =Projeções!G195 -> 187500 | D26: =Projeções!H195 -> 137500 | E26: =Projeções!I195 -> 183333.3333
A27: Subtotal - Gastos Fixos / Obrigatórios | B27: =SUM(B19:B26) -> 16744271.88 | C27: =SUM(C19:C26) -> 17972336.08 | D27: =SUM(D19:D26) -> 18534444.7 | E27: =SUM(E19:E26) -> 19114557.92
A28: Valor passível de alocação para demais diretrizes, objetivos e metas. | B28: =B15-B27 -> 72668133.83 | C28: =C15-C27 -> 69213437.43 | D28: =D15-D27 -> 70690453.21 | E28: =E15-E27 -> 57519789.33
